Workbook

Sheet NOTES
A2: The model has actual and test data to illustrate the workings of the model. | D2: ='Model update'!B5 -> 2021
A4: Issue | B4: Location | C4: Item | D4: Comment
A6: 1 | B6: 'Model update'!B21 | C6: CPI | D6: ="Updated June "&D2-1&" CPI for "&D2 -> Updated June 2020 CPI for 2021 | E6: NOTE: This worksheet is programmed to update for each year - use as checklist and note any placeholders or changes
E7: NOTE: Worksheet names in this file are programmed to update each year once each worksheet is accessed and a cell is selected
A8: =A6+1 -> 2 | B8: 'Model update'!B36 | C8: ="Xt for "&D2 -> Xt for 2021 | D8: ="Updated for "&D2&" annual update " -> Updated for 2021 annual update
A10: =A8+1 -> 3 | B10: 'Model update'!B46 | C10: ="Pass Through Amount for "&D2 -> Pass Through Amount for 2021 | D10: NIL for 2020
A12: =A10+1 -> 4 | B12: 'Model update'!B57 | C12: Real Pre-tax WACC (rptw) | D12: ="Updated for "&$D$2&" annual update" -> Updated for 2021 annual update
A14: =A12+1 -> 5 | B14: ="Prop"&D2&"DistTar!E8:E134" -> Prop2021DistTar!E8:E134 | C14: =D2-1&" tariffs" -> 2020 tariffs | D14: ="Updated from "&D2-1&" model" -> Updated from 2020 model
A16: =A14+1 -> 6 | B16: ARS!B6:B9 | C16: =D2-1&" ARS tariffs" -> 2020 ARS tariffs | D16: ="Updated from "&D2-1&" model" -> Updated from 2020 model
A18: =A16+1 -> 7 | B18: The following is test data to illustrate the workings of the model. | D18: Input data required from DNSPs
B19: ="Prop"&D2&"DistTar!D8:D134" -> Prop2021DistTar!D8:D134 | C19: ="Proposed "&D2&" Tariffs" -> Proposed 2021 Tariffs
B20: ="Prop"&D2&"DistTar!F8:F134" -> Prop2021DistTar!F8:F134 | C20: ="Actual "&D2-2&" Volumes" -> Actual 2019 Volumes
B22: ARS!C6:C9 | C22: ="Proposed "&D2&" Ancillary Reference Services Charges" -> Proposed 2021 Ancillary Reference Services Charges | D22: Calculated using formula

Sheet Model update
A3: Tariff Approval Template for | B3: AusNet Services
A5: Calendar year commencing | B5: 2021
A7: t | B7: =B5 -> 2021
A8: t-1 | B8: =B7-1 -> 2020
A9: t-2 | B9: 2019
A10: t-3 | B10: 2018
A13: Please fill in yellow highlighted cells where appropriate
A15: CPI
A17: CPI Index June 2016 | B17: 108.6
A18: CPI Index June 2017 | B18: 110.7
A19: CPI Index June 2018 | B19: 113
A20: CPI Index June 2019 | B20: 114.8
A21: CPI Index June 2020 | B21: 114.4
A22: CPI Index June 2021
A25: ="CPI Index June " &$B$10 -> CPI Index June 2018 | B25: =VLOOKUP(A25,A$17:D$22,2,FALSE) -> 113
A26: ="CPI Index June " &$B$9 -> CPI Index June 2019 | B26: =VLOOKUP(A26,A$17:D$22,2,FALSE) -> 114.8
A27: ="CPI Index June " &$B$8 -> CPI Index June 2020 | B27: =VLOOKUP(A27,A$17:D$22,2,FALSE) -> 114.4
A29: ="CPI " &$B$8 -> CPI 2020 | B29: =B26/B25-1 -> 0.01592920354
A30: ="CPI " &$B$5 -> CPI 2021 | B30: =B27/B26-1 -> -0.003484320557
A33: ="Xt for "&B$5 -> Xt for 2021
A34: 2019 | B34: 0.007392892718
A35: 2020 | B35: 0.01278415061
A36: 2021 | B36: 0.01662321806
A37: 2022 | B37: 0.005
A40: ="Xt for "&B$5 -> Xt for 2021 | B40: =VLOOKUP(B5,A34:B38,2,FALSE) -> 0.01662321806
A43: Pass Through Amounts : PT (t)
A44: 2019 | B44: 0
A45: 2020 | B45: 0
A46: 2021 | B46: 0
A47: 2022 | B47: 0
A50: ="Pass Through Amount for "&B$5 -> Pass Through Amount for 2021 | B50: =VLOOKUP(B5,A44:B48,2,FALSE) -> 0
A51: The Pass Through Amount is to include an amount that reflects the time value of money between incurring the costs and recovering the costs
A52: and excludes any amounts already passed through in reference tariffs.
A55: Pre-tax WACC for distribution tariffs
A57: Real Pre-tax WACCD | B57: 0.03830075603

Sheet Prop2021DistTar
B1: ="Tariff Approval - "&'Model update'!B3 -> Tariff Approval - AusNet Services | C1: ="Prop"&'Model update'!B5&"DistTar" -> Prop2021DistTar
B3: ="PROPOSED "&'Model update'!$B$5&" DISTRIBUTION TARIFFS" -> PROPOSED 2021 DISTRIBUTION TARIFFS
B5: Proposed tariff name | C5: Existing name | D5: ="Prop "&'Model update'!$B$5&" Tariff" -> Prop 2021 Tariff | E5: ="Exist "&'Model update'!$B$8&" Tariff" -> Exist 2020 Tariff | F5: ="Actual "&'Model update'!$B$9&" Volumes" -> Actual 2019 Volumes | G5: Prop Tar Revenue | H5: Exist Tar Revenue
B6: Tariff V - SP AusNet Central - Residential | C6: Tariff V - SP AusNet Central - Residential
B8: Fixed Charge | C8: Fixed Charge | D8: 0.3858 | E8: 0.3572 | F8: 542431.3817 | G8: =D8*$F8*365 -> 76383559.87 | H8: =E8*$F8*365 -> 70721118.68
B9: Peak 0 - 0.1 | C9: Peak 0 - 0.1 | D9: 6.54 | E9: 7.3345 | F9: 5416825.514 | G9: =D9*$F9 -> 35426038.86 | H9: 39729706.73
B10: Peak 0.1 - 0.2 | C10: Peak 0.1 - 0.2 | D10: 3.9236 | E10: 4.4002 | F10: 3862435.585 | G10: 15154652.26 | H10: 16995489.06
B11: Peak 0.2 - 1.4 | C11: Peak 0.2 - 1.4 | D11: 0.6861 | E11: 0.7694 | F11: 5818211.076 | G11: 3991874.619 | H11: 4476531.602
B12: Peak > 1.4 | C12: Peak > 1.4 | D12: 0.6134 | E12: 0.6879 | F12: 79110.495 | G12: 48526.37763 | H12: 54420.10951
B13: Off Peak 0 - 0.1 | C13: Off Peak 0 - 0.1 | D13: 2.2311 | E13: 2.5021 | F13: 7294065.89 | G13: 16273790.41 | H13: 18250482.26
B14: Off Peak 0.1 - 0.2 | C14: Off Peak 0.1 - 0.2 | D14: 1.7844 | E14: 2.0012 | F14: 1682755.427 | G14: 3002708.784 | H14: 3367530.161
B15: Off Peak 0.2 - 1.4 | C15: Off Peak 0.2 - 1.4 | D15: 0.6828 | E15: 0.7657 | F15: 590107.722 | G15: 402925.5526 | H15: 451845.4827
B16: Off Peak > 1.4 | C16: Off Peak > 1.4 | D16: 0.2376 | E16: 0.2665 | F16: 79800.216 | G16: 18960.53132 | H16: 21266.75756
B17: Tariff V - SP AusNet Central - Non Residential | C17: Tariff V - SP AusNet Central - Non Residential | F17: =SUM(F9:F16) -> 24823311.92
B19: Fixed Charge | C19: Fixed Charge | D19: 0.4028 | E19: 0.373 | F19: 10219.74813 | G19: =D19*$F19*365 -> 1502527.809 | H19: =E19*$F19*365 -> 1391367.609
B20: Peak 0 - 0.1 | C20: Peak 0 - 0.1 | D20: 1.1125 | E20: 1.2476 | F20: 94487.954 | G20: =D20*$F20 -> 105117.8488 | H20: 117883.1714
B21: Peak 0.1 - 0.2 | C21: Peak 0.1 - 0.2 | D21: 1.0593 | E21: 1.188 | F21: 78714.223 | G21: 83381.97642 | H21: 93512.49692
B22: Peak 0.2 - 1.4 | C22: Peak 0.2 - 1.4 | D22: 0.9474 | E22: 1.0625 | F22: 479726.811 | G22: 454493.1807 | H22: 509709.7367
B23: Peak > 1.4 | C23: Peak > 1.4 | D23: 0.711 | E23: 0.7974 | F23: 1262355.545 | G23: 897534.7925 | H23: 1006602.312
B24: Off Peak 0 - 0.1 | C24: Off Peak 0 - 0.1 | D24: 1.056 | E24: 1.1843 | F24: 161888.784 | G24: 170954.5559 | H24: 191724.8869
B25: Off Peak 0.1 - 0.2 | C25: Off Peak 0.1 - 0.2 | D25: 0.7386 | E25: 0.8283 | F25: 114613.475 | G25: 84653.51264 | H25: 94934.34134
B26: Off Peak 0.2 - 1.4 | C26: Off Peak 0.2 - 1.4 | D26: 0.6104 | E26: 0.6845 | F26: 690621.18 | G26: 421555.1683 | H26: 472730.1977
B27: Off Peak > 1.4 | C27: Off Peak > 1.4 | D27: 0.581 | E27: 0.6516 | F27: 1479380.261 | G27: 859519.9316 | H27: 963964.1781
B28: Tariff V - SP AusNet West - Residential | C28: Tariff V - SP AusNet West - Residential | F28: =SUM(F20:F27) -> 4361788.233
B30: Fixed Charge | C30: Fixed Charge | D30: 0.3858 | E30: 0.3572 | F30: 145788.044 | G30: =D30*$F30*365 -> 20529435 | H30: =E30*$F30*365 -> 19007553.6
B31: Peak 0 - 0.1 | C31: Peak 0 - 0.1 | D31: 3.7231 | E31: 4.1754 | F31: 1490194.007 | G31: =D31*$F31 -> 5548141.307 | H31: 6222156.057
B32: Peak 0.1 - 0.2 | C32: Peak 0.1 - 0.2 | D32: 2.6687 | E32: 2.9929 | F32: 1127296.454 | G32: 3008416.047 | H32: 3373885.557
B33: Peak 0.2 - 1.4 | C33: Peak 0.2 - 1.4 | D33: 0.8605 | E33: 0.965 | F33: 1736232.76 | G33: 1494028.29 | H33: 1675464.613
B34: Peak > 1.4 | C34: Peak > 1.4 | D34: 0.8241 | E34: 0.9242 | F34: 18296.895 | G34: 15078.47117 | H34: 16909.99036
B35: Off Peak 0 - 0.1 | C35: Off Peak 0 - 0.1 | D35: 1.1676 | E35: 1.3094 | F35: 1945311.184 | G35: 2271345.338 | H35: 2547190.464
B36: Off Peak 0.1 - 0.2 | C36: Off Peak 0.1 - 0.2 | D36: 1.0991 | E36: 1.2326 | F36: 545685.515 | G36: 599762.9495 | H36: 672611.9658
B37: Off Peak 0.2 - 1.4 | C37: Off Peak 0.2 - 1.4 | D37: 0.6218 | E37: 0.6973 | F37: 265994.981 | G37: 165395.6792 | H37: 185478.3003
B38: Off Peak > 1.4 | C38: Off Peak > 1.4 | D38: 0.1206 | E38: 0.1353 | F38: 11826.136 | G38: 1426.232002 | H38: 1600.076201
B39: Tariff V - SP AusNet West - Non Residential | C39: Tariff V - SP AusNet West - Non Residential | F39: =SUM(F31:F38) -> 7140837.932
B41: Fixed Charge | C41: Fixed Charge | D41: 0.4028 | E41: 0.373 | F41: 6075.272211 | G41: =D41*$F41*365 -> 893198.671 | H41: =E41*$F41*365 -> 827117.9351
B42: Peak 0 - 0.1 | C42: Peak 0 - 0.1 | D42: 1.8216 | E42: 2.0429 | F42: 50926.354 | G42: =D42*$F42 -> 92767.44645 | H42: 104037.4486
B43: Peak 0.1 - 0.2 | C43: Peak 0.1 - 0.2 | D43: 1.5341 | E43: 1.7204 | F43: 40136.322 | G43: 61573.13158 | H43: 69050.52837
B44: Peak 0.2 - 1.4 | C44: Peak 0.2 - 1.4 | D44: 0.9406 | E44: 1.0549 | F44: 217624.776 | G44: 204697.8643 | H44: 229572.3762
B45: Peak > 1.4 | C45: Peak > 1.4 | D45: 0.3458 | E45: 0.3878 | F45: 500556.943 | G45: 173092.5909 | H45: 194115.9825
B46: Off Peak 0 - 0.1 | C46: Off Peak 0 - 0.1 | D46: 0.8465 | E46: 0.9493 | F46: 77537.568 | G46: 65635.55131 | H46: 73606.4133
B47: Off Peak 0.1 - 0.2 | C47: Off Peak 0.1 - 0.2 | D47: 0.713 | E47: 0.7996 | F47: 49031.339 | G47: 34959.34471 | H47: 39205.45866
B48: Off Peak 0.2 - 1.4 | C48: Off Peak 0.2 - 1.4 | D48: 0.3458 | E48: 0.3878 | F48: 260756.022 | G48: 90169.43241 | H48: 101121.1853
B49: Off Peak > 1.4 | C49: Off Peak > 1.4 | D49: 0.2553 | E49: 0.2863 | F49: 513975.785 | G49: 131218.0179 | H49: 147151.2672
B50: Tariff V - Adjoining Central - Residential | C50: Tariff V - Adjoining Central - Residential | F50: =SUM(F42:F49) -> 1710545.109
B52: Fixed Charge | C52: Fixed Charge | D52: 0.3858 | E52: 0.3572 | F52: 1764.903323 | G52: =D52*$F52*365 -> 248528.3913 | H52: =E52*$F52*365 -> 230104.5655
B53: Peak 0 - 0.1 | C53: Peak 0 - 0.1 | D53: 9.9796 | E53: 11.1919 | F53: 15308.242 | G53: =D53*$F53 -> 152770.1319 | H53: 171328.3136
B54: Peak 0.1 - 0.2 | C54: Peak 0.1 - 0.2 | D54: 7.1813 | E54: 8.0536 | F54: 9827.457 | G54: 70573.91695 | H54: 79146.4077
B55: Peak 0.2 - 1.4 | C55: Peak 0.2 - 1.4 | D55: 2.5835 | E55: 2.8973 | F55: 12230.719 | G55: 31598.06254 | H55: 35436.06216
B56: Peak > 1.4 | C56: Peak > 1.4 | D56: 2.4602 | E56: 2.7591 | F56: 551.204 | G56: 1356.072081 | H56: 1520.826956
B57: Off Peak 0 - 0.1 | C57: Off Peak 0 - 0.1 | D57: 4.6381 | E57: 5.2015 | F57: 17812.036 | G57: 82614.00417 | H57: 92649.30525
B58: Off Peak 0.1 - 0.2 | C58: Off Peak 0.1 - 0.2 | D58: 2.6201 | E58: 2.9384 | F58: 4596.071 | G58: 12042.16563 | H58: 13505.09503
B59: Off Peak 0.2 - 1.4 | C59: Off Peak 0.2 - 1.4 | D59: 2.3005 | E59: 2.5799 | F59: 2927.582 | G59: 6734.902391 | H59: 7552.868802
B60: Off Peak > 1.4 | C60: Off Peak > 1.4 | D60: 2.1902 | E60: 2.4563 | F60: 432.37 | G60: 946.976774 | H60: 1062.030431
B61: Tariff V - Adjoining Central - Non Residential | C61: Tariff V - Adjoining Central - Non Residential | F61: =SUM(F53:F60) -> 63685.681
B63: Fixed Charge | C63: Fixed Charge | D63: 0.4028 | E63: 0.373 | F63: 15.58160532 | G63: =D63*$F63*365 -> 2290.838778 | H63: =E63*$F63*365 -> 2121.357656
B64: Peak 0 - 0.1 | C64: Peak 0 - 0.1 | D64: 4.1747 | E64: 4.6818 | F64: 186.236 | G64: =D64*$F64 -> 777.4794292 | H64: 871.9197048
B65: Peak 0.1 - 0.2 | C65: Peak 0.1 - 0.2 | D65: 3.9757 | E65: 4.4586 | F65: 157.434 | G65: 625.9103538 | H65: 701.9352324
B66: Peak 0.2 - 1.4 | C66: Peak 0.2 - 1.4 | D66: 3.5366 | E66: 3.9662 | F66: 798.103 | G66: 2822.57107 | H66: 3165.436119
B67: Peak > 1.4 | C67: Peak > 1.4 | D67: 3.3579 | E67: 3.7658 | F67: 306.262 | G67: 1028.39717 | H67: 1153.32144
B68: Off Peak 0 - 0.1 | C68: Off Peak 0 - 0.1 | D68: 3.7176 | E68: 4.1692 | F68: 274.837 | G68: 1021.734031 | H68: 1145.85042
B69: Off Peak 0.1 - 0.2 | C69: Off Peak 0.1 - 0.2 | D69: 3.53 | E69: 3.9588 | F69: 178.9 | G69: 631.517 | H69: 708.22932
B70: Off Peak 0.2 - 1.4 | C70: Off Peak 0.2 - 1.4 | D70: 3.3582 | E70: 3.7661 | F70: 1471.7 | G70: 4942.26294 | H70: 5542.56937
B71: Off Peak > 1.4 | C71: Off Peak > 1.4 | D71: 3.1979 | E71: 3.5864 | F71: 538.699 | G71: 1722.705532 | H71: 1931.990094
B72: Tariff V - Adjoining West - Residential | C72: Tariff V - Adjoining West - Residential | F72: =SUM(F64:F71) -> 3912.171
B74: Fixed Charge | C74: Fixed Charge | D74: 0.3858 | E74: 0.3572 | F74: 10963.40031 | G74: =D74*$F74*365 -> 1543833.141 | H74: =E74*$F74*365 -> 1429386.205
B75: Peak 0 - 0.1 | C75: Peak 0 - 0.1 | D75: 6.9669 | E75: 7.8132 | F75: 110186.788 | G75: =D75*$F75 -> 767660.3333 | H75: =E75*$F75 -> 860911.412
B76: Peak 0.1 - 0.2 | C76: Peak 0.1 - 0.2 | D76: 5.8393 | E76: 6.5486 | F76: 86785.597 | G76: 506767.1366 | H76: 568324.1605
B77: Peak 0.2 - 1.4 | C77: Peak 0.2 - 1.4 | D77: 3.0125 | E77: 3.3784 | F77: 170960.254 | G77: 515017.7652 | H77: 577572.1221
B78: Peak > 1.4 | C78: Peak > 1.4 | D78: 2.6823 | E78: 3.0081 | F78: 2129.266 | G78: 5711.330192 | H78: 6405.045055
B79: Off Peak 0 - 0.1 | C79: Off Peak 0 - 0.1 | D79: 4.2339 | E79: 4.7482 | F79: 142276.106 | G79: 602382.8052 | H79: 675555.4065
B80: Off Peak 0.1 - 0.2 | C80: Off Peak 0.1 - 0.2 | D80: 3.1794 | E80: 3.5656 | F80: 48758.251 | G80: 155021.9832 | H80: 173852.4198
B81: Off Peak 0.2 - 1.4 | C81: Off Peak 0.2 - 1.4 | D81: 2.2713 | E81: 2.5472 | F81: 28729.172 | G81: 65252.56836 | H81: 73178.94692
B82: Off Peak > 1.4 | C82: Off Peak > 1.4 | D82: 2.1632 | E82: 2.426 | F82: 3641.836 | G82: 7878.019635 | H82: 8835.094136
B83: Tariff V - Adjoining West - Non Residential | C83: Tariff V - Adjoining West - Non Residential | F83: =SUM(F75:F82) -> 593467.27
B85: Fixed Charge | C85: Fixed Charge | D85: 0.4028 | E85: 0.373 | F85: 276.7171401 | G85: =D85*$F85*365 -> 40683.50737 | H85: =E85*$F85*365 -> 37673.65504
B86: Peak 0 - 0.1 | C86: Peak 0 - 0.1 | D86: 4.9333 | E86: 5.5326 | F86: 2817.044 | G86: =D86*$F86 -> 13897.32317 | H86: =E86*$F86 -> 15585.57763
B87: Peak 0.1 - 0.2 | C87: Peak 0.1 - 0.2 | D87: 4.6259 | E87: 5.1878 | F87: 2316.364 | G87: 10715.26823 | H87: 12016.83316
B88: Peak 0.2 - 1.4 | C88: Peak 0.2 - 1.4 | D88: 3.8874 | E88: 4.3596 | F88: 13900.484 | G88: 54036.7415 | H88: 60600.55005
B89: Peak > 1.4 | C89: Peak > 1.4 | D89: 3.3166 | E89: 3.7195 | F89: 29449.126 | G89: 97670.97129 | H89: 109536.0242
B90: Off Peak 0 - 0.1 | C90: Off Peak 0 - 0.1 | D90: 3.7971 | E90: 4.2583 | F90: 4607.379 | G90: 17494.6788 | H90: 19619.602
B91: Off Peak 0.1 - 0.2 | C91: Off Peak 0.1 - 0.2 | D91: 3.6161 | E91: 4.0554 | F91: 3420.018 | G91: 12367.12709 | H91: 13869.541
B92: Off Peak 0.2 - 1.4 | C92: Off Peak 0.2 - 1.4 | D92: 3.1371 | E92: 3.5182 | F92: 20040.642 | G92: 62869.49802 | H92: 70506.98668
B93: Off Peak > 1.4 | C93: Off Peak > 1.4 | D93: 2.9534 | E93: 3.3122 | F93: 30968.371 | G93: 91461.98691 | H93: 102573.4384
F94: =SUM(F86:F93) -> 107519.428
B95: Tariff M - SP AusNet Central | C95: Tariff M - SP AusNet Central
B96: 0 - 10 | C96: 0 - 10 | D96: 680.0702 | E96: 693.9843 | F96: 161.62 | G96: =D96*$F96 -> 109912.9457 | H96: 112161.7426
B97: 10 - 50 | C97: 10 - 50 | D97: 647.7102 | E97: 660.9622 | F97: 52.8 | G97: 34199.09856 | H97: 34898.80416
B98: > 50 | C98: > 50 | D98: 135.2432 | E98: 138.0103 | F98: 0 | G98: 0 | H98: 0
B100: Tariff M - SP AusNet West | C100: Tariff M - SP AusNet West
B101: 0 - 10 | C101: 0 - 10 | D101: 680.0702 | E101: 693.9843 | F101: 28.7 | G101: =D101*$F101 -> 19518.01474 | H101: 19917.34941
B102: 10 - 50 | C102: 10 - 50 | D102: 647.7102 | E102: 660.9622 | F102: 24.56 | G102: 15907.76251 | H102: 16233.23163
B103: > 50 | C103: > 50 | D103: 135.2432 | E103: 138.0103 | F103: 0 | G103: 0 | H103: 0
B105: Tariff M - Adjoining Central | C105: Tariff M - Adjoining Central
B106: 0 - 10 | C106: 0 - 10 | D106: 680.0702 | E106: 693.9843 | F106: 0 | G106: =D106*$F106 -> 0 | H106: 0
B107: 10 - 50 | C107: 10 - 50 | D107: 647.7102 | E107: 660.9622 | F107: 0 | G107: 0 | H107: 0
B108: > 50 | C108: > 50 | D108: 135.2432 | E108: 138.0103 | F108: 0 | G108: 0 | H108: 0
B110: Tariff M - Adjoining West | C110: Tariff M - Adjoining West
B111: 0 - 10 | C111: 0 - 10 | D111: 680.0702 | E111: 693.9843 | F111: 0 | G111: =D111*$F111 -> 0 | H111: 0
B112: 10 - 50 | C112: 10 - 50 | D112: 647.7102 | E112: 660.9622 | F112: 0 | G112: 0 | H112: 0
B113: > 50 | C113: > 50 | D113: 135.2432 | E113: 138.0103 | F113: 0 | G113: 0 | H113: 0
B116: Tariff D - SP AusNet Central | C116: Tariff D - SP AusNet Central
B117: 0 - 10 | C117: 0 - 10 | D117: 310.2324 | E117: 316.5797 | F117: 1389.38 | G117: =D117*$F117 -> 431030.6919 | H117: 439849.5036
B118: 10 - 50 | C118: 10 - 50 | D118: 295.4618 | E118: 301.5069 | F118: 1567.74 | G118: 463207.2823 | H118: 472684.4274
B119: > 50 | C119: > 50 | D119: 143.4504 | E119: 146.3854 | F119: 3295.58 | G119: =D119*$F119 -> 472752.2692 | H119: =E119*$F119 -> 482424.7965
B121: Tariff D - SP AusNet West | C121: Tariff D - SP AusNet West
B122: 0 - 10 | C122: 0 - 10 | D122: 310.2324 | E122: 316.5797 | F122: 520.08 | G122: =D122*$F122 -> 161345.6666 | H122: 164646.7704
B123: 10 - 50 | C123: 10 - 50 | D123: 295.4618 | E123: 301.5069 | F123: 664.26 | G123: 196263.4553 | H123: 200278.9734
B124: > 50 | C124: > 50 | D124: 143.4504 | E124: 146.3854 | F124: 410.42 | G124: 58874.91317 | H124: 60079.49587
B126: Tariff D - Adjoining Central | C126: Tariff D - Adjoining Central
B127: 0 - 10 | C127: 0 - 10 | D127: 310.2324 | E127: 316.5797 | F127: 10 | G127: =D127*$F127 -> 3102.324 | H127: 3165.797
B128: 10 - 50 | C128: 10 - 50 | D128: 295.4618 | E128: 301.5069 | F128: 19.98 | G128: =D128*$F128 -> 5903.326764 | H128: 6024.107862
B129: > 50 | C129: > 50 | D129: 143.4504 | E129: 146.3854 | F129: 0 | G129: 0 | H129: 0
B131: Tariff D - Adjoining West | C131: Tariff D - Adjoining West
B132: 0 - 10 | C132: 0 - 10 | D132: 310.2324 | E132: 316.5797 | F132: 11.15 | G132: =D132*$F132 -> 3459.09126 | H132: 3529.863655
B133: 10 - 50 | C133: 10 - 50 | D133: 295.4618 | E133: 301.5069 | F133: 5.7 | G133: 1684.13226 | H133: 1718.58933
B134: > 50 | C134: > 50 | D134: 143.4504 | E134: 146.3854 | F134: 0 | G134: 0 | H134: 0
B137: Total Revenue | C137: Total Revenue | G137: =SUM(G8:G135) -> 197834028.6 | H137: =SUM(H8:H135) -> 201881913.6

Sheet 2021TarContForm
B1: ="Tariff Approval - "&'Model update'!B3 -> Tariff Approval - AusNet Services | C1: ='Model update'!B5&"TarContForm" -> 2021TarContForm
B3: ='Model update'!$B$5&" TARIFF CONTROL FORMULA" -> 2021 TARIFF CONTROL FORMULA
B6: CPI
B8: ="CPI Sept"&'Model update'!$B$9 -> CPI Sept2019 | C8: ='Model update'!B26 -> 114.8
B9: ="CPI Sept"&'Model update'!$B$8 -> CPI Sept2020 | C9: ='Model update'!B27 -> 114.4
B11: ="CPI "&'Model update'!$B$5 -> CPI 2021 | C11: =(C9/C8-1) -> -0.003484320557
B15: X factor
B17: ="X "&'Model update'!$B$5 -> X 2021 | C17: ='Model update'!B40 -> 0.01662321806
B20: Pass Through Factor (PT)
B22: Pass Through
B23: ="AP (t) "&'Model update'!$B$7 -> AP (t) 2021 | C23: ='Model update'!B50 -> 0
B25: Revenue
B26: ∑∑p(t-1)q(t-2) | C26: =C41 -> 201881913.6
B28: PT' (t-1) | C28: 0
B29: ="PT' "&'Model update'!$B$5 -> PT' 2021 | C29: =IF(C26="",0,(C23)/((1+C11)*(1-C17)*C26)) -> 0
B31: ="PTt "&'Model update'!$B$5 -> PTt 2021 | C31: =((1+C29)/(1+C28))-1 -> 0
B36: ='Model update'!$B$5&" Distribution price control" -> 2021 Distribution price control
B38: Average price movement allowed | C38: =(1+C11)*(1-C17)*(1+C31) -> 0.979950382
B40: Proposed distribution tariff revenue | C40: =IF(Prop2021DistTar!G137=0,"",Prop2021DistTar!G137) -> 197834028.6
B41: Existing distribution tariff revenue | C41: =IF(Prop2021DistTar!H137=0,"",Prop2021DistTar!H137) -> 201881913.6
B42: Average price movement | C42: =IF(C40="","",C40/C41) -> 0.9799492442
B44: =IF(C40="","",IF(C38>=C42,"DISTRIBUTION PRICE CONTROL FORMULA COMPLIANT","DISTRIBUTION PRICE CONTROL FORMULA BREACHED")) -> DISTRIBUTION PRICE CONTROL FORMULA COMPLIANT

Sheet 2021RebalContForm
B1: ="Tariff Approval - "&'Model update'!B3 -> Tariff Approval - AusNet Services | C1: ='Model update'!B5&"RebalContForm" -> 2021RebalContForm
B3: ='Model update'!$B$5&" REBALANCING CONTROL FORMULA" -> 2021 REBALANCING CONTROL FORMULA
B6: Rebalancing control
B8: ="CPI "&'Model update'!$B$5 -> CPI 2021 | C8: ='2021TarContForm'!C11 -> -0.003484320557
B9: ="Y "&'Model update'!$B$5 -> Y 2021 | C9: 0.02
B10: ="PTt "&'Model update'!$B$5 -> PTt 2021 | C10: ='2021TarContForm'!C31 -> 0
B11: ="Xt "&'Model update'!$B$5 -> Xt 2021 | C11: ='2021TarContForm'!C17 -> 0.01662321806
B13: Rebalancing control | C13: =(1+C8)*(1+C9)*(1+C10)*(1-C11) -> 0.9995493896
B17: Rebalancing control summary
C18: Existing | D18: Proposed | E18: Movement | F18: Assessment
B19: =B39 -> Tariff V - SP AusNet Central - Residential | C19: =C60 -> 154068390.8 | D19: =C61 -> 150703037.3 | E19: =IF(C19=0,0,D19/C19) -> 0.9781567552 | F19: =IF(E19=0,"",IF($C$13<=E19,"Breached","Compliant")) -> Compliant
B20: =B69 -> Tariff V - SP AusNet West - Residential | C20: =C90 -> 33702850.63 | D20: =C91 -> 33633029.31 | E20: 0.997928326 | F20: =IF(E20=0,"",IF($C$13<=E20,"Breached","Compliant")) -> Compliant
B21: =B99 -> Tariff V - Adjoining Central - Residential | C21: =C120 -> 632305.4754 | D21: =C121 -> 607164.6237 | E21: 0.9602393894 | F21: Compliant
B22: =B129 -> Tariff V - Adjoining West - Residential | C22: =C150 -> 4374020.812 | D22: =C151 -> 4169525.083 | E22: 0.9532476551 | F22: Compliant
B23: =B159 -> Tariff V - SP AusNet Central - Non Residential | C23: =C180 -> 4842428.93 | D23: =C181 -> 4579738.776 | E23: 0.9457523988 | F23: Compliant
B24: =B189 -> Tariff V - SP AusNet West - Non Residential | C24: =C210 -> 1784978.595 | D24: =C211 -> 1747312.051 | E24: 0.9788980412 | F24: Compliant
B25: =B219 -> Tariff V - Adjoining Central - Non Residential | C25: =C240 -> 17342.60936 | D25: =C241 -> 15863.4163 | E25: 0.914707584 | F25: Compliant
B26: =B249 -> Tariff V - Adjoining West - Non Residential | C26: =C270 -> 441982.2081 | D26: =C271 -> 401197.1024 | E26: =IF(C26=0,0,D26/C26) -> 0.9077222906 | F26: =IF(E26=0,"",IF($C$13<=E26,"Breached","Compliant")) -> Compliant
B27: =B279 -> Tariff M - SP AusNet Central | C27: =C294 -> 147060.5467 | D27: =C295 -> 144112.0443 | E27: 0.9799504183 | F27: Compliant
B28: =B303 -> Tariff M - SP AusNet West | C28: =C318 -> 36150.58104 | D28: =C319 -> 35425.77725 | E28: 0.9799504249 | F28: Compliant
B29: =B327 -> Tariff M - Adjoining Central | C29: =C342 -> 0 | D29: =C343 -> 0 | E29: =IF(C29=0,0,D29/C29) -> 0 | F29: =IF(E29=0,"",IF($C$13<=E29,"Breached","Compliant")) -> 
B30: =B351 -> Tariff M - Adjoining West | C30: =C366 -> 0 | D30: =C367 -> 0 | E30: 0
B31: =B375 -> Tariff D - SP AusNet Central | C31: =C390 -> 1394958.728 | D31: =C391 -> 1366990.243 | E31: =IF(C31=0,0,D31/C31) -> 0.9799503143 | F31: =IF(E31=0,"",IF($C$13<=E31,"Breached","Compliant")) -> Compliant
B32: =B399 -> Tariff D - SP AusNet West | C32: =C414 -> 425005.2396 | D32: =C415 -> 416484.035 | E32: 0.979950354 | F32: Compliant
B33: =B423 -> Tariff D - Adjoining Central | C33: =C438 -> 9189.904862 | D33: =C439 -> 9005.650764 | E33: 0.9799503803 | F33: Compliant
B34: =B447 -> Tariff D - Adjoining West | C34: =C462 -> 5248.452985 | D34: =C463 -> 5143.22352 | E34: 0.9799503844 | F34: Compliant
C35: =SUM(C19:C34) -> 201881913.6 | D35: =SUM(D19:D34) -> 197834028.6 | E35: 0.9799492442
B39: =Prop2021DistTar!B6 -> Tariff V - SP AusNet Central - Residential | C39: 1 | D39: 2 | E39: 3 | F39: 4 | G39: 5 | H39: 6 | I39: 7 | J39: 8 | K39: 9
C40: 1 | D40: 2 | E40: 3 | F40: 4 | G40: 5 | H40: 6 | I40: 7 | J40: 8 | K40: 9
B41: Distribution tariff | C41: Fixed | D41: PkBlk1 | E41: PkBlk2 | F41: PkBlk3 | G41: PkBlk4 | H41: OPkBlk1 | I41: OPkBlk2 | J41: OPkBlk3 | K41: OPkBlk4
B43: ="Existing : "&Prop2021DistTar!C6 -> Existing : Tariff V - SP AusNet Central - Residential | C43: =INDEX(Prop2021DistTar!$E$8:$E$16,C$40) -> 0.3572 | D43: =INDEX(Prop2021DistTar!$E$8:$E$16,D$40) -> 7.3345 | E43: =INDEX(Prop2021DistTar!$E$8:$E$16,E$40) -> 4.4002 | F43: =INDEX(Prop2021DistTar!$E$8:$E$16,F$40) -> 0.7694 | G43: =INDEX(Prop2021DistTar!$E$8:$E$16,G$40) -> 0.6879 | H43: =INDEX(Prop2021DistTar!$E$8:$E$16,H$40) -> 2.5021 | I43: =INDEX(Prop2021DistTar!$E$8:$E$16,I$40) -> 2.0012 | J43: =INDEX(Prop2021DistTar!$E$8:$E$16,J$40) -> 0.7657 | K43: =INDEX(Prop2021DistTar!$E$8:$E$16,K$40) -> 0.2665
B45: ="Proposed : "&B39 -> Proposed : Tariff V - SP AusNet Central - Residential | C45: =INDEX(Prop2021DistTar!$D$8:$D$16,C$39) -> 0.3858 | D45: =INDEX(Prop2021DistTar!$D$8:$D$16,D$39) -> 6.54 | E45: =INDEX(Prop2021DistTar!$D$8:$D$16,E$39) -> 3.9236 | F45: =INDEX(Prop2021DistTar!$D$8:$D$16,F$39) -> 0.6861 | G45: =INDEX(Prop2021DistTar!$D$8:$D$16,G$39) -> 0.6134 | H45: =INDEX(Prop2021DistTar!$D$8:$D$16,H$39) -> 2.2311 | I45: =INDEX(Prop2021DistTar!$D$8:$D$16,I$39) -> 1.7844 | J45: =INDEX(Prop2021DistTar!$D$8:$D$16,J$39) -> 0.6828 | K45: =INDEX(Prop2021DistTar!$D$8:$D$16,K$39) -> 0.2376
B47: Distribution volumes (actual) | C47: =C$41 -> Fixed | D47: =D$41 -> PkBlk1 | E47: PkBlk2 | F47: PkBlk3 | G47: PkBlk4 | H47: OPkBlk1 | I47: OPkBlk2 | J47: OPkBlk3 | K47: OPkBlk4
B49: =B43 -> Existing : Tariff V - SP AusNet Central - Residential | C49: =INDEX(Prop2021DistTar!$F$8:$F$16,C$39) -> 542431.3817 | D49: =INDEX(Prop2021DistTar!$F$8:$F$16,D$39) -> 5416825.514 | E49: =INDEX(Prop2021DistTar!$F$8:$F$16,E$39) -> 3862435.585 | F49: =INDEX(Prop2021DistTar!$F$8:$F$16,F$39) -> 5818211.076 | G49: =INDEX(Prop2021DistTar!$F$8:$F$16,G$39) -> 79110.495 | H49: =INDEX(Prop2021DistTar!$F$8:$F$16,H$39) -> 7294065.89 | I49: =INDEX(Prop2021DistTar!$F$8:$F$16,I$39) -> 1682755.427 | J49: =INDEX(Prop2021DistTar!$F$8:$F$16,J$39) -> 590107.722 | K49: =INDEX(Prop2021DistTar!$F$8:$F$16,K$39) -> 79800.216
B51: =B45 -> Proposed : Tariff V - SP AusNet Central - Residential | C51: =INDEX(Prop2021DistTar!$F$8:$F$16,C$39) -> 542431.3817 | D51: =INDEX(Prop2021DistTar!$F$8:$F$16,D$39) -> 5416825.514 | E51: =INDEX(Prop2021DistTar!$F$8:$F$16,E$39) -> 3862435.585 | F51: =INDEX(Prop2021DistTar!$F$8:$F$16,F$39) -> 5818211.076 | G51: =INDEX(Prop2021DistTar!$F$8:$F$16,G$39) -> 79110.495 | H51: =INDEX(Prop2021DistTar!$F$8:$F$16,H$39) -> 7294065.89 | I51: =INDEX(Prop2021DistTar!$F$8:$F$16,I$39) -> 1682755.427 | J51: =INDEX(Prop2021DistTar!$F$8:$F$16,J$39) -> 590107.722 | K51: =INDEX(Prop2021DistTar!$F$8:$F$16,K$39) -> 79800.216
B53: Distribution revenue | C53: =C$41 -> Fixed | D53: PkBlk1 | E53: PkBlk2 | F53: PkBlk3 | G53: PkBlk4 | H53: OPkBlk1 | I53: OPkBlk2 | J53: OPkBlk3 | K53: OPkBlk4
B55: =B49 -> Existing : Tariff V - SP AusNet Central - Residential | C55: =INDEX(Prop2021DistTar!$H$8:$H$16,C$40) -> 70721118.68 | D55: =INDEX(Prop2021DistTar!$H$8:$H$16,D$40) -> 39729706.73 | E55: =INDEX(Prop2021DistTar!$H$8:$H$16,E$40) -> 16995489.06 | F55: =INDEX(Prop2021DistTar!$H$8:$H$16,F$40) -> 4476531.602 | G55: =INDEX(Prop2021DistTar!$H$8:$H$16,G$40) -> 54420.10951 | H55: =INDEX(Prop2021DistTar!$H$8:$H$16,H$40) -> 18250482.26 | I55: =INDEX(Prop2021DistTar!$H$8:$H$16,I$40) -> 3367530.161 | J55: =INDEX(Prop2021DistTar!$H$8:$H$16,J$40) -> 451845.4827 | K55: =INDEX(Prop2021DistTar!$H$8:$H$16,K$40) -> 21266.75756
B57: =B51 -> Proposed : Tariff V - SP AusNet Central - Residential | C57: =INDEX(Prop2021DistTar!$G$8:$G$16,C$39) -> 76383559.87 | D57: =INDEX(Prop2021DistTar!$G$8:$G$16,D$39) -> 35426038.86 | E57: =INDEX(Prop2021DistTar!$G$8:$G$16,E$39) -> 15154652.26 | F57: =INDEX(Prop2021DistTar!$G$8:$G$16,F$39) -> 3991874.619 | G57: =INDEX(Prop2021DistTar!$G$8:$G$16,G$39) -> 48526.37763 | H57: =INDEX(Prop2021DistTar!$G$8:$G$16,H$39) -> 16273790.41 | I57: =INDEX(Prop2021DistTar!$G$8:$G$16,I$39) -> 3002708.784 | J57: =INDEX(Prop2021DistTar!$G$8:$G$16,J$39) -> 402925.5526 | K57: =INDEX(Prop2021DistTar!$G$8:$G$16,K$39) -> 18960.53132
B59: Revenue | C59: Total
B60: =B55 -> Existing : Tariff V - SP AusNet Central - Residential | C60: =SUM(C55:K55) -> 154068390.8
B61: =B57 -> Proposed : Tariff V - SP AusNet Central - Residential | C61: =SUM(C57:K57) -> 150703037.3
B63: Average price movement | C63: =IF(C61=0,"",C61/C60) -> 0.9781567552
B65: =IF(C63="","",IF(C63<=$C$13,"REBALANCING CONTROL COMPLIANT","REBALANCING CONTROL BREACHED")) -> REBALANCING CONTROL COMPLIANT
B69: =Prop2021DistTar!B28 -> Tariff V - SP AusNet West - Residential | C69: 1 | D69: 2 | E69: 3 | F69: 4 | G69: 5 | H69: 6 | I69: 7 | J69: 8 | K69: 9
C70: 1 | D70: 2 | E70: 3 | F70: 4 | G70: 5 | H70: 6 | I70: 7 | J70: 8 | K70: 9
B71: Distribution tariff | C71: Fixed | D71: PkBlk1 | E71: PkBlk2 | F71: PkBlk3 | G71: PkBlk4 | H71: OPkBlk1 | I71: OPkBlk2 | J71: OPkBlk3 | K71: OPkBlk4
B73: ="Existing : "&Prop2021DistTar!C28 -> Existing : Tariff V - SP AusNet West - Residential | C73: =INDEX(Prop2021DistTar!$E$30:$E$38,C$40) -> 0.3572 | D73: =INDEX(Prop2021DistTar!$E$30:$E$38,D$40) -> 4.1754 | E73: =INDEX(Prop2021DistTar!$E$30:$E$38,E$40) -> 2.9929 | F73: =INDEX(Prop2021DistTar!$E$30:$E$38,F$40) -> 0.965 | G73: =INDEX(Prop2021DistTar!$E$30:$E$38,G$40) -> 0.9242 | H73: =INDEX(Prop2021DistTar!$E$30:$E$38,H$40) -> 1.3094 | I73: =INDEX(Prop2021DistTar!$E$30:$E$38,I$40) -> 1.2326 | J73: =INDEX(Prop2021DistTar!$E$30:$E$38,J$40) -> 0.6973 | K73: =INDEX(Prop2021DistTar!$E$30:$E$38,K$40) -> 0.1353
B75: ="Proposed : "&B69 -> Proposed : Tariff V - SP AusNet West - Residential | C75: =INDEX(Prop2021DistTar!$D$30:$D$38,C$39) -> 0.3858 | D75: =INDEX(Prop2021DistTar!$D$30:$D$38,D$39) -> 3.7231 | E75: =INDEX(Prop2021DistTar!$D$30:$D$38,E$39) -> 2.6687 | F75: =INDEX(Prop2021DistTar!$D$30:$D$38,F$39) -> 0.8605 | G75: =INDEX(Prop2021DistTar!$D$30:$D$38,G$39) -> 0.8241 | H75: =INDEX(Prop2021DistTar!$D$30:$D$38,H$39) -> 1.1676 | I75: =INDEX(Prop2021DistTar!$D$30:$D$38,I$39) -> 1.0991 | J75: =INDEX(Prop2021DistTar!$D$30:$D$38,J$39) -> 0.6218 | K75: =INDEX(Prop2021DistTar!$D$30:$D$38,K$39) -> 0.1206
B77: Distribution volumes (actual) | C77: Fixed | D77: PkBlk1 | E77: PkBlk2 | F77: PkBlk3 | G77: PkBlk4 | H77: PkBlk5 | I77: Shd1Blk1 | J77: Shd1Blk2 | K77: Shd1Blk3
B79: =B73 -> Existing : Tariff V - SP AusNet West - Residential | C79: =INDEX(Prop2021DistTar!$F$30:$F$38,C$39) -> 145788.044 | D79: =INDEX(Prop2021DistTar!$F$30:$F$38,D$39) -> 1490194.007 | E79: =INDEX(Prop2021DistTar!$F$30:$F$38,E$39) -> 1127296.454 | F79: =INDEX(Prop2021DistTar!$F$30:$F$38,F$39) -> 1736232.76 | G79: =INDEX(Prop2021DistTar!$F$30:$F$38,G$39) -> 18296.895 | H79: =INDEX(Prop2021DistTar!$F$30:$F$38,H$39) -> 1945311.184 | I79: =INDEX(Prop2021DistTar!$F$30:$F$38,I$39) -> 545685.515 | J79: =INDEX(Prop2021DistTar!$F$30:$F$38,J$39) -> 265994.981 | K79: =INDEX(Prop2021DistTar!$F$30:$F$38,K$39) -> 11826.136
B81: =B75 -> Proposed : Tariff V - SP AusNet West - Residential | C81: =INDEX(Prop2021DistTar!$F$30:$F$38,C$39) -> 145788.044 | D81: =INDEX(Prop2021DistTar!$F$30:$F$38,D$39) -> 1490194.007 | E81: =INDEX(Prop2021DistTar!$F$30:$F$38,E$39) -> 1127296.454 | F81: =INDEX(Prop2021DistTar!$F$30:$F$38,F$39) -> 1736232.76 | G81: =INDEX(Prop2021DistTar!$F$30:$F$38,G$39) -> 18296.895 | H81: =INDEX(Prop2021DistTar!$F$30:$F$38,H$39) -> 1945311.184 | I81: =INDEX(Prop2021DistTar!$F$30:$F$38,I$39) -> 545685.515 | J81: =INDEX(Prop2021DistTar!$F$30:$F$38,J$39) -> 265994.981 | K81: =INDEX(Prop2021DistTar!$F$30:$F$38,K$39) -> 11826.136
B83: Distribution revenue | C83: Fixed | D83: PkBlk1 | E83: PkBlk2 | F83: PkBlk3 | G83: PkBlk4 | H83: PkBlk5 | I83: Shd1Blk1 | J83: Shd1Blk2 | K83: Shd1Blk3
B85: =B79 -> Existing : Tariff V - SP AusNet West - Residential | C85: =INDEX(Prop2021DistTar!$H$30:$H$38,C$40) -> 19007553.6 | D85: =INDEX(Prop2021DistTar!$H$30:$H$38,D$40) -> 6222156.057 | E85: =INDEX(Prop2021DistTar!$H$30:$H$38,E$40) -> 3373885.557 | F85: =INDEX(Prop2021DistTar!$H$30:$H$38,F$40) -> 1675464.613 | G85: =INDEX(Prop2021DistTar!$H$30:$H$38,G$40) -> 16909.99036 | H85: =INDEX(Prop2021DistTar!$H$30:$H$38,H$40) -> 2547190.464 | I85: =INDEX(Prop2021DistTar!$H$30:$H$38,I$40) -> 672611.9658 | J85: =INDEX(Prop2021DistTar!$H$30:$H$38,J$40) -> 185478.3003 | K85: =INDEX(Prop2021DistTar!$H$30:$H$38,K$40) -> 1600.076201
B87: =B81 -> Proposed : Tariff V - SP AusNet West - Residential | C87: =INDEX(Prop2021DistTar!$G$30:$G$38,C$39) -> 20529435 | D87: =INDEX(Prop2021DistTar!$G$30:$G$38,D$39) -> 5548141.307 | E87: =INDEX(Prop2021DistTar!$G$30:$G$38,E$39) -> 3008416.047 | F87: =INDEX(Prop2021DistTar!$G$30:$G$38,F$39) -> 1494028.29 | G87: =INDEX(Prop2021DistTar!$G$30:$G$38,G$39) -> 15078.47117 | H87: =INDEX(Prop2021DistTar!$G$30:$G$38,H$39) -> 2271345.338 | I87: =INDEX(Prop2021DistTar!$G$30:$G$38,I$39) -> 599762.9495 | J87: =INDEX(Prop2021DistTar!$G$30:$G$38,J$39) -> 165395.6792 | K87: =INDEX(Prop2021DistTar!$G$30:$G$38,K$39) -> 1426.232002
B89: Revenue | C89: Total
B90: =B85 -> Existing : Tariff V - SP AusNet West - Residential | C90: =SUM(C85:K85) -> 33702850.63
B91: =B87 -> Proposed : Tariff V - SP AusNet West - Residential | C91: =SUM(C87:K87) -> 33633029.31
B93: Average price movement | C93: =IF(C91=0,"",C91/C90) -> 0.997928326
B95: =IF(C93="","",IF(C93<=$C$13,"REBALANCING CONTROL COMPLIANT","REBALANCING CONTROL BREACHED")) -> REBALANCING CONTROL COMPLIANT
B99: =Prop2021DistTar!B50 -> Tariff V - Adjoining Central - Residential | C99: 1 | D99: 2 | E99: 3 | F99: 4 | G99: 5 | H99: 6 | I99: 7 | J99: 8 | K99: 9
C100: 1 | D100: 2 | E100: 3 | F100: 4 | G100: 5 | H100: 6 | I100: 7 | J100: 8 | K100: 9
B101: Distribution tariff | C101: Fixed | D101: PkBlk1 | E101: PkBlk2 | F101: PkBlk3 | G101: PkBlk4 | H101: OPkBlk1 | I101: OPkBlk2 | J101: OPkBlk3 | K101: OPkBlk4
B103: ="Existing : "&Prop2021DistTar!C50 -> Existing : Tariff V - Adjoining Central - Residential | C103: =INDEX(Prop2021DistTar!$E$52:$E$60,C$40) -> 0.3572 | D103: =INDEX(Prop2021DistTar!$E$52:$E$60,D$40) -> 11.1919 | E103: =INDEX(Prop2021DistTar!$E$52:$E$60,E$40) -> 8.0536 | F103: =INDEX(Prop2021DistTar!$E$52:$E$60,F$40) -> 2.8973 | G103: =INDEX(Prop2021DistTar!$E$52:$E$60,G$40) -> 2.7591 | H103: =INDEX(Prop2021DistTar!$E$52:$E$60,H$40) -> 5.2015 | I103: =INDEX(Prop2021DistTar!$E$52:$E$60,I$40) -> 2.9384 | J103: =INDEX(Prop2021DistTar!$E$52:$E$60,J$40) -> 2.5799 | K103: =INDEX(Prop2021DistTar!$E$52:$E$60,K$40) -> 2.4563
B105: ="Proposed : "&B99 -> Proposed : Tariff V - Adjoining Central - Residential | C105: =INDEX(Prop2021DistTar!$D$52:$D$60,C$39) -> 0.3858 | D105: =INDEX(Prop2021DistTar!$D$52:$D$60,D$39) -> 9.9796 | E105: =INDEX(Prop2021DistTar!$D$52:$D$60,E$39) -> 7.1813 | F105: =INDEX(Prop2021DistTar!$D$52:$D$60,F$39) -> 2.5835 | G105: =INDEX(Prop2021DistTar!$D$52:$D$60,G$39) -> 2.4602 | H105: =INDEX(Prop2021DistTar!$D$52:$D$60,H$39) -> 4.6381 | I105: =INDEX(Prop2021DistTar!$D$52:$D$60,I$39) -> 2.6201 | J105: =INDEX(Prop2021DistTar!$D$52:$D$60,J$39) -> 2.3005 | K105: =INDEX(Prop2021DistTar!$D$52:$D$60,K$39) -> 2.1902
B107: Distribution volumes (actual) | C107: Fixed | D107: PkBlk1 | E107: PkBlk2 | F107: PkBlk3 | G107: PkBlk4 | H107: PkBlk5 | I107: Shd1Blk1 | J107: Shd1Blk2 | K107: Shd1Blk3
B109: =B103 -> Existing : Tariff V - Adjoining Central - Residential | C109: =INDEX(Prop2021DistTar!$F$52:$F$60,C$39) -> 1764.903323 | D109: =INDEX(Prop2021DistTar!$F$52:$F$60,D$39) -> 15308.242 | E109: =INDEX(Prop2021DistTar!$F$52:$F$60,E$39) -> 9827.457 | F109: =INDEX(Prop2021DistTar!$F$52:$F$60,F$39) -> 12230.719 | G109: =INDEX(Prop2021DistTar!$F$52:$F$60,G$39) -> 551.204 | H109: =INDEX(Prop2021DistTar!$F$52:$F$60,H$39) -> 17812.036 | I109: =INDEX(Prop2021DistTar!$F$52:$F$60,I$39) -> 4596.071 | J109: =INDEX(Prop2021DistTar!$F$52:$F$60,J$39) -> 2927.582 | K109: =INDEX(Prop2021DistTar!$F$52:$F$60,K$39) -> 432.37
B111: =B105 -> Proposed : Tariff V - Adjoining Central - Residential | C111: =INDEX(Prop2021DistTar!$F$52:$F$60,C$39) -> 1764.903323 | D111: =INDEX(Prop2021DistTar!$F$52:$F$60,D$39) -> 15308.242 | E111: =INDEX(Prop2021DistTar!$F$52:$F$60,E$39) -> 9827.457 | F111: =INDEX(Prop2021DistTar!$F$52:$F$60,F$39) -> 12230.719 | G111: =INDEX(Prop2021DistTar!$F$52:$F$60,G$39) -> 551.204 | H111: =INDEX(Prop2021DistTar!$F$52:$F$60,H$39) -> 17812.036 | I111: =INDEX(Prop2021DistTar!$F$52:$F$60,I$39) -> 4596.071 | J111: =INDEX(Prop2021DistTar!$F$52:$F$60,J$39) -> 2927.582 | K111: =INDEX(Prop2021DistTar!$F$52:$F$60,K$39) -> 432.37
B113: Distribution revenue | C113: Fixed | D113: PkBlk1 | E113: PkBlk2 | F113: PkBlk3 | G113: PkBlk4 | H113: PkBlk5 | I113: Shd1Blk1 | J113: Shd1Blk2 | K113: Shd1Blk3
B115: =B109 -> Existing : Tariff V - Adjoining Central - Residential | C115: =INDEX(Prop2021DistTar!$H$52:$H$60,C$40) -> 230104.5655 | D115: =INDEX(Prop2021DistTar!$H$52:$H$60,D$40) -> 171328.3136 | E115: =INDEX(Prop2021DistTar!$H$52:$H$60,E$40) -> 79146.4077 | F115: =INDEX(Prop2021DistTar!$H$52:$H$60,F$40) -> 35436.06216 | G115: =INDEX(Prop2021DistTar!$H$52:$H$60,G$40) -> 1520.826956 | H115: =INDEX(Prop2021DistTar!$H$52:$H$60,H$40) -> 92649.30525 | I115: =INDEX(Prop2021DistTar!$H$52:$H$60,I$40) -> 13505.09503 | J115: =INDEX(Prop2021DistTar!$H$52:$H$60,J$40) -> 7552.868802 | K115: =INDEX(Prop2021DistTar!$H$52:$H$60,K$40) -> 1062.030431
B117: =B111 -> Proposed : Tariff V - Adjoining Central - Residential | C117: =INDEX(Prop2021DistTar!$G$52:$G$60,C$39) -> 248528.3913 | D117: =INDEX(Prop2021DistTar!$G$52:$G$60,D$39) -> 152770.1319 | E117: =INDEX(Prop2021DistTar!$G$52:$G$60,E$39) -> 70573.91695 | F117: =INDEX(Prop2021DistTar!$G$52:$G$60,F$39) -> 31598.06254 | G117: =INDEX(Prop2021DistTar!$G$52:$G$60,G$39) -> 1356.072081 | H117: =INDEX(Prop2021DistTar!$G$52:$G$60,H$39) -> 82614.00417 | I117: =INDEX(Prop2021DistTar!$G$52:$G$60,I$39) -> 12042.16563 | J117: =INDEX(Prop2021DistTar!$G$52:$G$60,J$39) -> 6734.902391 | K117: =INDEX(Prop2021DistTar!$G$52:$G$60,K$39) -> 946.976774
B119: Revenue | C119: Total
B120: =B115 -> Existing : Tariff V - Adjoining Central - Residential | C120: =SUM(C115:K115) -> 632305.4754
B121: =B117 -> Proposed : Tariff V - Adjoining Central - Residential | C121: =SUM(C117:K117) -> 607164.6237
B123: Average price movement | C123: =IF(C121=0,"",C121/C120) -> 0.9602393894
B125: =IF(C123="","",IF(C123<=$C$13,"REBALANCING CONTROL COMPLIANT","REBALANCING CONTROL BREACHED")) -> REBALANCING CONTROL COMPLIANT
B129: =Prop2021DistTar!B72 -> Tariff V - Adjoining West - Residential | C129: 1 | D129: 2 | E129: 3 | F129: 4 | G129: 5 | H129: 6 | I129: 7 | J129: 8 | K129: 9
C130: 1 | D130: 2 | E130: 3 | F130: 4 | G130: 5 | H130: 6 | I130: 7 | J130: 8 | K130: 9
B131: Distribution tariff | C131: Fixed | D131: PkBlk1 | E131: PkBlk2 | F131: PkBlk3 | G131: PkBlk4 | H131: OPkBlk1 | I131: OPkBlk2 | J131: OPkBlk3 | K131: OPkBlk4
B133: ="Existing : "&Prop2021DistTar!C72 -> Existing : Tariff V - Adjoining West - Residential | C133: =INDEX(Prop2021DistTar!$E$74:$E$82,C$40) -> 0.3572 | D133: =INDEX(Prop2021DistTar!$E$74:$E$82,D$40) -> 7.8132 | E133: =INDEX(Prop2021DistTar!$E$74:$E$82,E$40) -> 6.5486 | F133: =INDEX(Prop2021DistTar!$E$74:$E$82,F$40) -> 3.3784 | G133: =INDEX(Prop2021DistTar!$E$74:$E$82,G$40) -> 3.0081 | H133: =INDEX(Prop2021DistTar!$E$74:$E$82,H$40) -> 4.7482 | I133: =INDEX(Prop2021DistTar!$E$74:$E$82,I$40) -> 3.5656 | J133: =INDEX(Prop2021DistTar!$E$74:$E$82,J$40) -> 2.5472 | K133: =INDEX(Prop2021DistTar!$E$74:$E$82,K$40) -> 2.426
B135: ="Proposed : "&B129 -> Proposed : Tariff V - Adjoining West - Residential | C135: =INDEX(Prop2021DistTar!$D$74:$D$82,C$39) -> 0.3858 | D135: =INDEX(Prop2021DistTar!$D$74:$D$82,D$39) -> 6.9669 | E135: =INDEX(Prop2021DistTar!$D$74:$D$82,E$39) -> 5.8393 | F135: =INDEX(Prop2021DistTar!$D$74:$D$82,F$39) -> 3.0125 | G135: =INDEX(Prop2021DistTar!$D$74:$D$82,G$39) -> 2.6823 | H135: =INDEX(Prop2021DistTar!$D$74:$D$82,H$39) -> 4.2339 | I135: =INDEX(Prop2021DistTar!$D$74:$D$82,I$39) -> 3.1794 | J135: =INDEX(Prop2021DistTar!$D$74:$D$82,J$39) -> 2.2713 | K135: =INDEX(Prop2021DistTar!$D$74:$D$82,K$39) -> 2.1632
B137: Distribution volumes (actual) | C137: Fixed | D137: PkBlk1 | E137: PkBlk2 | F137: PkBlk3 | G137: PkBlk4 | H137: PkBlk5 | I137: Shd1Blk1 | J137: Shd1Blk2 | K137: Shd1Blk3
B139: =B133 -> Existing : Tariff V - Adjoining West - Residential | C139: =INDEX(Prop2021DistTar!$F$74:$F$82,C$39) -> 10963.40031 | D139: =INDEX(Prop2021DistTar!$F$74:$F$82,D$39) -> 110186.788 | E139: =INDEX(Prop2021DistTar!$F$74:$F$82,E$39) -> 86785.597 | F139: =INDEX(Prop2021DistTar!$F$74:$F$82,F$39) -> 170960.254 | G139: =INDEX(Prop2021DistTar!$F$74:$F$82,G$39) -> 2129.266 | H139: =INDEX(Prop2021DistTar!$F$74:$F$82,H$39) -> 142276.106 | I139: =INDEX(Prop2021DistTar!$F$74:$F$82,I$39) -> 48758.251 | J139: =INDEX(Prop2021DistTar!$F$74:$F$82,J$39) -> 28729.172 | K139: =INDEX(Prop2021DistTar!$F$74:$F$82,K$39) -> 3641.836
B141: =B135 -> Proposed : Tariff V - Adjoining West - Residential | C141: =INDEX(Prop2021DistTar!$F$74:$F$82,C$39) -> 10963.40031 | D141: =INDEX(Prop2021DistTar!$F$74:$F$82,D$39) -> 110186.788 | E141: =INDEX(Prop2021DistTar!$F$74:$F$82,E$39) -> 86785.597 | F141: =INDEX(Prop2021DistTar!$F$74:$F$82,F$39) -> 170960.254 | G141: =INDEX(Prop2021DistTar!$F$74:$F$82,G$39) -> 2129.266 | H141: =INDEX(Prop2021DistTar!$F$74:$F$82,H$39) -> 142276.106 | I141: =INDEX(Prop2021DistTar!$F$74:$F$82,I$39) -> 48758.251 | J141: =INDEX(Prop2021DistTar!$F$74:$F$82,J$39) -> 28729.172 | K141: =INDEX(Prop2021DistTar!$F$74:$F$82,K$39) -> 3641.836
B143: Distribution revenue | C143: Fixed | D143: PkBlk1 | E143: PkBlk2 | F143: PkBlk3 | G143: PkBlk4 | H143: PkBlk5 | I143: Shd1Blk1 | J143: Shd1Blk2 | K143: Shd1Blk3
B145: =B139 -> Existing : Tariff V - Adjoining West - Residential | C145: =INDEX(Prop2021DistTar!$H$74:$H$82,C$40) -> 1429386.205 | D145: =INDEX(Prop2021DistTar!$H$74:$H$82,D$40) -> 860911.412 | E145: =INDEX(Prop2021DistTar!$H$74:$H$82,E$40) -> 568324.1605 | F145: =INDEX(Prop2021DistTar!$H$74:$H$82,F$40) -> 577572.1221 | G145: =INDEX(Prop2021DistTar!$H$74:$H$82,G$40) -> 6405.045055 | H145: =INDEX(Prop2021DistTar!$H$74:$H$82,H$40) -> 675555.4065 | I145: =INDEX(Prop2021DistTar!$H$74:$H$82,I$40) -> 173852.4198 | J145: =INDEX(Prop2021DistTar!$H$74:$H$82,J$40) -> 73178.94692 | K145: =INDEX(Prop2021DistTar!$H$74:$H$82,K$40) -> 8835.094136
B147: =B141 -> Proposed : Tariff V - Adjoining West - Residential | C147: =INDEX(Prop2021DistTar!$G$74:$G$82,C$39) -> 1543833.141 | D147: =INDEX(Prop2021DistTar!$G$74:$G$82,D$39) -> 767660.3333 | E147: =INDEX(Prop2021DistTar!$G$74:$G$82,E$39) -> 506767.1366 | F147: =INDEX(Prop2021DistTar!$G$74:$G$82,F$39) -> 515017.7652 | G147: =INDEX(Prop2021DistTar!$G$74:$G$82,G$39) -> 5711.330192 | H147: =INDEX(Prop2021DistTar!$G$74:$G$82,H$39) -> 602382.8052 | I147: =INDEX(Prop2021DistTar!$G$74:$G$82,I$39) -> 155021.9832 | J147: =INDEX(Prop2021DistTar!$G$74:$G$82,J$39) -> 65252.56836 | K147: =INDEX(Prop2021DistTar!$G$74:$G$82,K$39) -> 7878.019635
B149: Revenue | C149: Total
B150: =B145 -> Existing : Tariff V - Adjoining West - Residential | C150: =SUM(C145:K145) -> 4374020.812
B151: =B147 -> Proposed : Tariff V - Adjoining West - Residential | C151: =SUM(C147:K147) -> 4169525.083
B153: Average price movement | C153: =IF(C151=0,"",C151/C150) -> 0.9532476551
B155: =IF(C153="","",IF(C153<=$C$13,"REBALANCING CONTROL COMPLIANT","REBALANCING CONTROL BREACHED")) -> REBALANCING CONTROL COMPLIANT
B159: =Prop2021DistTar!B17 -> Tariff V - SP AusNet Central - Non Residential | C159: 1 | D159: 2 | E159: 3 | F159: 4 | G159: 5
C160: 1 | D160: 2 | E160: 3 | F160: 4 | G160: 5 | H160: 6 | I160: 7 | J160: 8 | K160: 9
B161: Distribution tariff | C161: Fixed | D161: PkBlk1 | E161: PkBlk2 | F161: PkBlk3 | G161: PkBlk4 | H161: OPkBlk1 | I161: OPkBlk2 | J161: OPkBlk3 | K161: OPkBlk4
B163: ="Existing : "&Prop2021DistTar!C17 -> Existing : Tariff V - SP AusNet Central - Non Residential | C163: =INDEX(Prop2021DistTar!$E$19:$E$27,C$40) -> 0.373 | D163: =INDEX(Prop2021DistTar!$E$19:$E$27,D$40) -> 1.2476 | E163: =INDEX(Prop2021DistTar!$E$19:$E$27,E$40) -> 1.188 | F163: =INDEX(Prop2021DistTar!$E$19:$E$27,F$40) -> 1.0625 | G163: =INDEX(Prop2021DistTar!$E$19:$E$27,G$40) -> 0.7974 | H163: =INDEX(Prop2021DistTar!$E$19:$E$27,H$40) -> 1.1843 | I163: =INDEX(Prop2021DistTar!$E$19:$E$27,I$40) -> 0.8283 | J163: =INDEX(Prop2021DistTar!$E$19:$E$27,J$40) -> 0.6845 | K163: =INDEX(Prop2021DistTar!$E$19:$E$27,K$40) -> 0.6516
B165: ="Proposed : "&B159 -> Proposed : Tariff V - SP AusNet Central - Non Residential | C165: =INDEX(Prop2021DistTar!$D$19:$D$27,C$39) -> 0.4028 | D165: =INDEX(Prop2021DistTar!$D$19:$D$27,D$39) -> 1.1125 | E165: =INDEX(Prop2021DistTar!$D$19:$D$27,E$39) -> 1.0593 | F165: =INDEX(Prop2021DistTar!$D$19:$D$27,F$39) -> 0.9474 | G165: =INDEX(Prop2021DistTar!$D$19:$D$27,G$39) -> 0.711 | H165: =INDEX(Prop2021DistTar!$D$19:$D$27,H$39) -> 1.056 | I165: =INDEX(Prop2021DistTar!$D$19:$D$27,I$39) -> 0.7386 | J165: =INDEX(Prop2021DistTar!$D$19:$D$27,J$39) -> 0.6104 | K165: =INDEX(Prop2021DistTar!$D$19:$D$27,K$39) -> 0.581
B167: Distribution volumes (actual) | C167: Fixed | D167: PkBlk1 | E167: PkBlk2 | F167: PkBlk3 | G167: PkBlk4 | H167: PkBlk5 | I167: Shd1Blk1 | J167: Shd1Blk2 | K167: Shd1Blk3
B169: =B163 -> Existing : Tariff V - SP AusNet Central - Non Residential | C169: =INDEX(Prop2021DistTar!$F$19:$F$27,C$39) -> 10219.74813 | D169: =INDEX(Prop2021DistTar!$F$19:$F$27,D$39) -> 94487.954 | E169: =INDEX(Prop2021DistTar!$F$19:$F$27,E$39) -> 78714.223 | F169: =INDEX(Prop2021DistTar!$F$19:$F$27,F$39) -> 479726.811 | G169: =INDEX(Prop2021DistTar!$F$19:$F$27,G$39) -> 1262355.545 | H169: =INDEX(Prop2021DistTar!$F$19:$F$27,H$39) -> 161888.784 | I169: =INDEX(Prop2021DistTar!$F$19:$F$27,I$39) -> 114613.475 | J169: =INDEX(Prop2021DistTar!$F$19:$F$27,J$39) -> 690621.18 | K169: =INDEX(Prop2021DistTar!$F$19:$F$27,K$39) -> 1479380.261
B171: =B165 -> Proposed : Tariff V - SP AusNet Central - Non Residential | C171: =INDEX(Prop2021DistTar!$F$19:$F$27,C$39) -> 10219.74813 | D171: =INDEX(Prop2021DistTar!$F$19:$F$27,D$39) -> 94487.954 | E171: =INDEX(Prop2021DistTar!$F$19:$F$27,E$39) -> 78714.223 | F171: =INDEX(Prop2021DistTar!$F$19:$F$27,F$39) -> 479726.811 | G171: =INDEX(Prop2021DistTar!$F$19:$F$27,G$39) -> 1262355.545 | H171: =INDEX(Prop2021DistTar!$F$19:$F$27,H$39) -> 161888.784 | I171: =INDEX(Prop2021DistTar!$F$19:$F$27,I$39) -> 114613.475 | J171: =INDEX(Prop2021DistTar!$F$19:$F$27,J$39) -> 690621.18 | K171: =INDEX(Prop2021DistTar!$F$19:$F$27,K$39) -> 1479380.261
B173: Distribution revenue | C173: Fixed | D173: PkBlk1 | E173: PkBlk2 | F173: PkBlk3 | G173: PkBlk4 | H173: PkBlk5 | I173: Shd1Blk1 | J173: Shd1Blk2 | K173: Shd1Blk3
B175: =B169 -> Existing : Tariff V - SP AusNet Central - Non Residential | C175: =INDEX(Prop2021DistTar!$H$19:$H$27,C$40) -> 1391367.609 | D175: =INDEX(Prop2021DistTar!$H$19:$H$27,D$40) -> 117883.1714 | E175: =INDEX(Prop2021DistTar!$H$19:$H$27,E$40) -> 93512.49692 | F175: =INDEX(Prop2021DistTar!$H$19:$H$27,F$40) -> 509709.7367 | G175: =INDEX(Prop2021DistTar!$H$19:$H$27,G$40) -> 1006602.312 | H175: =INDEX(Prop2021DistTar!$H$19:$H$27,H$40) -> 191724.8869 | I175: =INDEX(Prop2021DistTar!$H$19:$H$27,I$40) -> 94934.34134 | J175: =INDEX(Prop2021DistTar!$H$19:$H$27,J$40) -> 472730.1977 | K175: =INDEX(Prop2021DistTar!$H$19:$H$27,K$40) -> 963964.1781
B177: =B171 -> Proposed : Tariff V - SP AusNet Central - Non Residential | C177: =INDEX(Prop2021DistTar!$G$19:$G$27,C$39) -> 1502527.809 | D177: =INDEX(Prop2021DistTar!$G$19:$G$27,D$39) -> 105117.8488 | E177: =INDEX(Prop2021DistTar!$G$19:$G$27,E$39) -> 83381.97642 | F177: =INDEX(Prop2021DistTar!$G$19:$G$27,F$39) -> 454493.1807 | G177: =INDEX(Prop2021DistTar!$G$19:$G$27,G$39) -> 897534.7925 | H177: =INDEX(Prop2021DistTar!$G$19:$G$27,H$39) -> 170954.5559 | I177: =INDEX(Prop2021DistTar!$G$19:$G$27,I$39) -> 84653.51264 | J177: =INDEX(Prop2021DistTar!$G$19:$G$27,J$39) -> 421555.1683 | K177: =INDEX(Prop2021DistTar!$G$19:$G$27,K$39) -> 859519.9316
B179: Revenue | C179: Total
B180: =B175 -> Existing : Tariff V - SP AusNet Central - Non Residential | C180: =SUM(C175:K175) -> 4842428.93
B181: =B177 -> Proposed : Tariff V - SP AusNet Central - Non Residential | C181: =SUM(C177:K177) -> 4579738.776
B183: Average price movement | C183: =IF(C181=0,"",C181/C180) -> 0.9457523988
B185: =IF(C183="","",IF(C183<=$C$13,"REBALANCING CONTROL COMPLIANT","REBALANCING CONTROL BREACHED")) -> REBALANCING CONTROL COMPLIANT
B189: =Prop2021DistTar!B39 -> Tariff V - SP AusNet West - Non Residential | C189: 1 | D189: 2 | E189: 3 | F189: 4 | G189: 5
C190: 1 | D190: 2 | E190: 3 | F190: 4 | G190: 5 | H190: 6 | I190: 7 | J190: 8 | K190: 9
B191: Distribution tariff | C191: Fixed | D191: PkBlk1 | E191: PkBlk2 | F191: PkBlk3 | G191: PkBlk4 | H191: OPkBlk1 | I191: OPkBlk2 | J191: OPkBlk3 | K191: OPkBlk4
B193: ="Existing : "&Prop2021DistTar!C39 -> Existing : Tariff V - SP AusNet West - Non Residential | C193: =INDEX(Prop2021DistTar!$E$41:$E$49,C$40) -> 0.373 | D193: =INDEX(Prop2021DistTar!$E$41:$E$49,D$40) -> 2.0429 | E193: =INDEX(Prop2021DistTar!$E$41:$E$49,E$40) -> 1.7204 | F193: =INDEX(Prop2021DistTar!$E$41:$E$49,F$40) -> 1.0549 | G193: =INDEX(Prop2021DistTar!$E$41:$E$49,G$40) -> 0.3878 | H193: =INDEX(Prop2021DistTar!$E$41:$E$49,H$40) -> 0.9493 | I193: =INDEX(Prop2021DistTar!$E$41:$E$49,I$40) -> 0.7996 | J193: =INDEX(Prop2021DistTar!$E$41:$E$49,J$40) -> 0.3878 | K193: =INDEX(Prop2021DistTar!$E$41:$E$49,K$40) -> 0.2863
B195: ="Proposed : "&B189 -> Proposed : Tariff V - SP AusNet West - Non Residential | C195: =INDEX(Prop2021DistTar!$D$41:$D$49,C$39) -> 0.4028 | D195: =INDEX(Prop2021DistTar!$D$41:$D$49,D$39) -> 1.8216 | E195: =INDEX(Prop2021DistTar!$D$41:$D$49,E$39) -> 1.5341 | F195: =INDEX(Prop2021DistTar!$D$41:$D$49,F$39) -> 0.9406 | G195: =INDEX(Prop2021DistTar!$D$41:$D$49,G$39) -> 0.3458 | H195: =INDEX(Prop2021DistTar!$D$41:$D$49,H$39) -> 0.8465 | I195: =INDEX(Prop2021DistTar!$D$41:$D$49,I$39) -> 0.713 | J195: =INDEX(Prop2021DistTar!$D$41:$D$49,J$39) -> 0.3458 | K195: =INDEX(Prop2021DistTar!$D$41:$D$49,K$39) -> 0.2553
B197: Distribution volumes (actual) | C197: Fixed | D197: PkBlk1 | E197: PkBlk2 | F197: PkBlk3 | G197: PkBlk4 | H197: PkBlk5 | I197: Shd1Blk1 | J197: Shd1Blk2 | K197: Shd1Blk3
B199: =B193 -> Existing : Tariff V - SP AusNet West - Non Residential | C199: =INDEX(Prop2021DistTar!$F$41:$F$49,C$39) -> 6075.272211 | D199: =INDEX(Prop2021DistTar!$F$41:$F$49,D$39) -> 50926.354 | E199: =INDEX(Prop2021DistTar!$F$41:$F$49,E$39) -> 40136.322 | F199: =INDEX(Prop2021DistTar!$F$41:$F$49,F$39) -> 217624.776 | G199: =INDEX(Prop2021DistTar!$F$41:$F$49,G$39) -> 500556.943 | H199: =INDEX(Prop2021DistTar!$F$41:$F$49,H$39) -> 77537.568 | I199: =INDEX(Prop2021DistTar!$F$41:$F$49,I$39) -> 49031.339 | J199: =INDEX(Prop2021DistTar!$F$41:$F$49,J$39) -> 260756.022 | K199: =INDEX(Prop2021DistTar!$F$41:$F$49,K$39) -> 513975.785
B201: =B195 -> Proposed : Tariff V - SP AusNet West - Non Residential | C201: =INDEX(Prop2021DistTar!$F$41:$F$49,C$39) -> 6075.272211 | D201: =INDEX(Prop2021DistTar!$F$41:$F$49,D$39) -> 50926.354 | E201: =INDEX(Prop2021DistTar!$F$41:$F$49,E$39) -> 40136.322 | F201: =INDEX(Prop2021DistTar!$F$41:$F$49,F$39) -> 217624.776 | G201: =INDEX(Prop2021DistTar!$F$41:$F$49,G$39) -> 500556.943 | H201: =INDEX(Prop2021DistTar!$F$41:$F$49,H$39) -> 77537.568 | I201: =INDEX(Prop2021DistTar!$F$41:$F$49,I$39) -> 49031.339 | J201: =INDEX(Prop2021DistTar!$F$41:$F$49,J$39) -> 260756.022 | K201: =INDEX(Prop2021DistTar!$F$41:$F$49,K$39) -> 513975.785
B203: Distribution revenue | C203: Fixed | D203: PkBlk1 | E203: PkBlk2 | F203: PkBlk3 | G203: PkBlk4 | H203: PkBlk5 | I203: Shd1Blk1 | J203: Shd1Blk2 | K203: Shd1Blk3
B205: =B199 -> Existing : Tariff V - SP AusNet West - Non Residential | C205: =INDEX(Prop2021DistTar!$H$41:$H$49,C$40) -> 827117.9351 | D205: =INDEX(Prop2021DistTar!$H$41:$H$49,D$40) -> 104037.4486 | E205: =INDEX(Prop2021DistTar!$H$41:$H$49,E$40) -> 69050.52837 | F205: =INDEX(Prop2021DistTar!$H$41:$H$49,F$40) -> 229572.3762 | G205: =INDEX(Prop2021DistTar!$H$41:$H$49,G$40) -> 194115.9825 | H205: =INDEX(Prop2021DistTar!$H$41:$H$49,H$40) -> 73606.4133 | I205: =INDEX(Prop2021DistTar!$H$41:$H$49,I$40) -> 39205.45866 | J205: =INDEX(Prop2021DistTar!$H$41:$H$49,J$40) -> 101121.1853 | K205: =INDEX(Prop2021DistTar!$H$41:$H$49,K$40) -> 147151.2672
B207: =B201 -> Proposed : Tariff V - SP AusNet West - Non Residential | C207: =INDEX(Prop2021DistTar!$G$41:$G$49,C$39) -> 893198.671 | D207: =INDEX(Prop2021DistTar!$G$41:$G$49,D$39) -> 92767.44645 | E207: =INDEX(Prop2021DistTar!$G$41:$G$49,E$39) -> 61573.13158 | F207: =INDEX(Prop2021DistTar!$G$41:$G$49,F$39) -> 204697.8643 | G207: =INDEX(Prop2021DistTar!$G$41:$G$49,G$39) -> 173092.5909 | H207: =INDEX(Prop2021DistTar!$G$41:$G$49,H$39) -> 65635.55131 | I207: =INDEX(Prop2021DistTar!$G$41:$G$49,I$39) -> 34959.34471 | J207: =INDEX(Prop2021DistTar!$G$41:$G$49,J$39) -> 90169.43241 | K207: =INDEX(Prop2021DistTar!$G$41:$G$49,K$39) -> 131218.0179
B209: Revenue | C209: Total
B210: =B205 -> Existing : Tariff V - SP AusNet West - Non Residential | C210: =SUM(C205:K205) -> 1784978.595
B211: =B207 -> Proposed : Tariff V - SP AusNet West - Non Residential | C211: =SUM(C207:K207) -> 1747312.051
B213: Average price movement | C213: =IF(C211=0,"",C211/C210) -> 0.9788980412
B215: =IF(C213="","",IF(C213<=$C$13,"REBALANCING CONTROL COMPLIANT","REBALANCING CONTROL BREACHED")) -> REBALANCING CONTROL COMPLIANT
B219: =Prop2021DistTar!B61 -> Tariff V - Adjoining Central - Non Residential | C219: 1 | D219: 2 | E219: 3 | F219: 4 | G219: 5
C220: 1 | D220: 2 | E220: 3 | F220: 4 | G220: 5 | H220: 6 | I220: 7 | J220: 8 | K220: 9
B221: Distribution tariff | C221: Fixed | D221: PkBlk1 | E221: PkBlk2 | F221: PkBlk3 | G221: PkBlk4 | H221: OPkBlk1 | I221: OPkBlk2 | J221: OPkBlk3 | K221: OPkBlk4
B223: ="Existing : "&Prop2021DistTar!C61 -> Existing : Tariff V - Adjoining Central - Non Residential | C223: =INDEX(Prop2021DistTar!$E$63:$E$71,C$40) -> 0.373 | D223: =INDEX(Prop2021DistTar!$E$63:$E$71,D$40) -> 4.6818 | E223: =INDEX(Prop2021DistTar!$E$63:$E$71,E$40) -> 4.4586 | F223: =INDEX(Prop2021DistTar!$E$63:$E$71,F$40) -> 3.9662 | G223: =INDEX(Prop2021DistTar!$E$63:$E$71,G$40) -> 3.7658 | H223: =INDEX(Prop2021DistTar!$E$63:$E$71,H$40) -> 4.1692 | I223: =INDEX(Prop2021DistTar!$E$63:$E$71,I$40) -> 3.9588 | J223: =INDEX(Prop2021DistTar!$E$63:$E$71,J$40) -> 3.7661 | K223: =INDEX(Prop2021DistTar!$E$63:$E$71,K$40) -> 3.5864
B225: ="Proposed : "&B219 -> Proposed : Tariff V - Adjoining Central - Non Residential | C225: =INDEX(Prop2021DistTar!$D$63:$D$71,C$39) -> 0.4028 | D225: =INDEX(Prop2021DistTar!$D$63:$D$71,D$39) -> 4.1747 | E225: =INDEX(Prop2021DistTar!$D$63:$D$71,E$39) -> 3.9757 | F225: =INDEX(Prop2021DistTar!$D$63:$D$71,F$39) -> 3.5366 | G225: =INDEX(Prop2021DistTar!$D$63:$D$71,G$39) -> 3.3579 | H225: =INDEX(Prop2021DistTar!$D$63:$D$71,H$39) -> 3.7176 | I225: =INDEX(Prop2021DistTar!$D$63:$D$71,I$39) -> 3.53 | J225: =INDEX(Prop2021DistTar!$D$63:$D$71,J$39) -> 3.3582 | K225: =INDEX(Prop2021DistTar!$D$63:$D$71,K$39) -> 3.1979
B227: Distribution volumes (actual) | C227: Fixed | D227: PkBlk1 | E227: PkBlk2 | F227: PkBlk3 | G227: PkBlk4 | H227: PkBlk5 | I227: Shd1Blk1 | J227: Shd1Blk2 | K227: Shd1Blk3
B229: =B223 -> Existing : Tariff V - Adjoining Central - Non Residential | C229: =INDEX(Prop2021DistTar!$F$63:$F$71,C$39) -> 15.58160532 | D229: =INDEX(Prop2021DistTar!$F$63:$F$71,D$39) -> 186.236 | E229: =INDEX(Prop2021DistTar!$F$63:$F$71,E$39) -> 157.434 | F229: =INDEX(Prop2021DistTar!$F$63:$F$71,F$39) -> 798.103 | G229: =INDEX(Prop2021DistTar!$F$63:$F$71,G$39) -> 306.262 | H229: =INDEX(Prop2021DistTar!$F$63:$F$71,H$39) -> 274.837 | I229: =INDEX(Prop2021DistTar!$F$63:$F$71,I$39) -> 178.9 | J229: =INDEX(Prop2021DistTar!$F$63:$F$71,J$39) -> 1471.7 | K229: =INDEX(Prop2021DistTar!$F$63:$F$71,K$39) -> 538.699
B231: =B225 -> Proposed : Tariff V - Adjoining Central - Non Residential | C231: =INDEX(Prop2021DistTar!$F$63:$F$71,C$39) -> 15.58160532 | D231: =INDEX(Prop2021DistTar!$F$63:$F$71,D$39) -> 186.236 | E231: =INDEX(Prop2021DistTar!$F$63:$F$71,E$39) -> 157.434 | F231: =INDEX(Prop2021DistTar!$F$63:$F$71,F$39) -> 798.103 | G231: =INDEX(Prop2021DistTar!$F$63:$F$71,G$39) -> 306.262 | H231: =INDEX(Prop2021DistTar!$F$63:$F$71,H$39) -> 274.837 | I231: =INDEX(Prop2021DistTar!$F$63:$F$71,I$39) -> 178.9 | J231: =INDEX(Prop2021DistTar!$F$63:$F$71,J$39) -> 1471.7 | K231: =INDEX(Prop2021DistTar!$F$63:$F$71,K$39) -> 538.699
B233: Distribution revenue | C233: Fixed | D233: PkBlk1 | E233: PkBlk2 | F233: PkBlk3 | G233: PkBlk4 | H233: PkBlk5 | I233: Shd1Blk1 | J233: Shd1Blk2 | K233: Shd1Blk3
B235: =B229 -> Existing : Tariff V - Adjoining Central - Non Residential | C235: =INDEX(Prop2021DistTar!$H$63:$H$71,C$40) -> 2121.357656 | D235: =INDEX(Prop2021DistTar!$H$63:$H$71,D$40) -> 871.9197048 | E235: =INDEX(Prop2021DistTar!$H$63:$H$71,E$40) -> 701.9352324 | F235: =INDEX(Prop2021DistTar!$H$63:$H$71,F$40) -> 3165.436119 | G235: =INDEX(Prop2021DistTar!$H$63:$H$71,G$40) -> 1153.32144 | H235: =INDEX(Prop2021DistTar!$H$63:$H$71,H$40) -> 1145.85042 | I235: =INDEX(Prop2021DistTar!$H$63:$H$71,I$40) -> 708.22932 | J235: =INDEX(Prop2021DistTar!$H$63:$H$71,J$40) -> 5542.56937 | K235: =INDEX(Prop2021DistTar!$H$63:$H$71,K$40) -> 1931.990094
B237: =B231 -> Proposed : Tariff V - Adjoining Central - Non Residential | C237: =INDEX(Prop2021DistTar!$G$63:$G$71,C$39) -> 2290.838778 | D237: =INDEX(Prop2021DistTar!$G$63:$G$71,D$39) -> 777.4794292 | E237: =INDEX(Prop2021DistTar!$G$63:$G$71,E$39) -> 625.9103538 | F237: =INDEX(Prop2021DistTar!$G$63:$G$71,F$39) -> 2822.57107 | G237: =INDEX(Prop2021DistTar!$G$63:$G$71,G$39) -> 1028.39717 | H237: =INDEX(Prop2021DistTar!$G$63:$G$71,H$39) -> 1021.734031 | I237: =INDEX(Prop2021DistTar!$G$63:$G$71,I$39) -> 631.517 | J237: =INDEX(Prop2021DistTar!$G$63:$G$71,J$39) -> 4942.26294 | K237: =INDEX(Prop2021DistTar!$G$63:$G$71,K$39) -> 1722.705532
B239: Revenue | C239: Total
B240: =B235 -> Existing : Tariff V - Adjoining Central - Non Residential | C240: =SUM(C235:K235) -> 17342.60936
B241: =B237 -> Proposed : Tariff V - Adjoining Central - Non Residential | C241: =SUM(C237:K237) -> 15863.4163
B243: Average price movement | C243: =IF(C241=0,"",C241/C240) -> 0.914707584
B245: =IF(C243="","",IF(C243<=$C$13,"REBALANCING CONTROL COMPLIANT","REBALANCING CONTROL BREACHED")) -> REBALANCING CONTROL COMPLIANT
B249: =Prop2021DistTar!B83 -> Tariff V - Adjoining West - Non Residential | C249: 1 | D249: 2 | E249: 3 | F249: 4 | G249: 5
C250: 1 | D250: 2 | E250: 3 | F250: 4 | G250: 5 | H250: 6 | I250: 7 | J250: 8 | K250: 9
B251: Distribution tariff | C251: Fixed | D251: PkBlk1 | E251: PkBlk2 | F251: PkBlk3 | G251: PkBlk4 | H251: OPkBlk1 | I251: OPkBlk2 | J251: OPkBlk3 | K251: OPkBlk4
B253: ="Existing : "&Prop2021DistTar!C83 -> Existing : Tariff V - Adjoining West - Non Residential | C253: =INDEX(Prop2021DistTar!$E$85:$E$93,C$40) -> 0.373 | D253: =INDEX(Prop2021DistTar!$E$85:$E$93,D$40) -> 5.5326 | E253: =INDEX(Prop2021DistTar!$E$85:$E$93,E$40) -> 5.1878 | F253: =INDEX(Prop2021DistTar!$E$85:$E$93,F$40) -> 4.3596 | G253: =INDEX(Prop2021DistTar!$E$85:$E$93,G$40) -> 3.7195 | H253: =INDEX(Prop2021DistTar!$E$85:$E$93,H$40) -> 4.2583 | I253: =INDEX(Prop2021DistTar!$E$85:$E$93,I$40) -> 4.0554 | J253: =INDEX(Prop2021DistTar!$E$85:$E$93,J$40) -> 3.5182 | K253: =INDEX(Prop2021DistTar!$E$85:$E$93,K$40) -> 3.3122
B255: ="Proposed : "&B249 -> Proposed : Tariff V - Adjoining West - Non Residential | C255: =INDEX(Prop2021DistTar!$D$85:$D$93,C$39) -> 0.4028 | D255: =INDEX(Prop2021DistTar!$D$85:$D$93,D$39) -> 4.9333 | E255: =INDEX(Prop2021DistTar!$D$85:$D$93,E$39) -> 4.6259 | F255: =INDEX(Prop2021DistTar!$D$85:$D$93,F$39) -> 3.8874 | G255: =INDEX(Prop2021DistTar!$D$85:$D$93,G$39) -> 3.3166 | H255: =INDEX(Prop2021DistTar!$D$85:$D$93,H$39) -> 3.7971 | I255: =INDEX(Prop2021DistTar!$D$85:$D$93,I$39) -> 3.6161 | J255: =INDEX(Prop2021DistTar!$D$85:$D$93,J$39) -> 3.1371 | K255: =INDEX(Prop2021DistTar!$D$85:$D$93,K$39) -> 2.9534
B257: Distribution volumes (actual) | C257: Fixed | D257: PkBlk1 | E257: PkBlk2 | F257: PkBlk3 | G257: PkBlk4 | H257: PkBlk5 | I257: Shd1Blk1 | J257: Shd1Blk2 | K257: Shd1Blk3
B259: =B253 -> Existing : Tariff V - Adjoining West - Non Residential | C259: =INDEX(Prop2021DistTar!$F$85:$F$93,C$39) -> 276.7171401 | D259: =INDEX(Prop2021DistTar!$F$85:$F$93,D$39) -> 2817.044 | E259: =INDEX(Prop2021DistTar!$F$85:$F$93,E$39) -> 2316.364 | F259: =INDEX(Prop2021DistTar!$F$85:$F$93,F$39) -> 13900.484 | G259: =INDEX(Prop2021DistTar!$F$85:$F$93,G$39) -> 29449.126 | H259: =INDEX(Prop2021DistTar!$F$85:$F$93,H$39) -> 4607.379 | I259: =INDEX(Prop2021DistTar!$F$85:$F$93,I$39) -> 3420.018 | J259: =INDEX(Prop2021DistTar!$F$85:$F$93,J$39) -> 20040.642 | K259: =INDEX(Prop2021DistTar!$F$85:$F$93,K$39) -> 30968.371
B261: =B255 -> Proposed : Tariff V - Adjoining West - Non Residential | C261: =INDEX(Prop2021DistTar!$F$85:$F$93,C$39) -> 276.7171401 | D261: =INDEX(Prop2021DistTar!$F$85:$F$93,D$39) -> 2817.044 | E261: =INDEX(Prop2021DistTar!$F$85:$F$93,E$39) -> 2316.364 | F261: =INDEX(Prop2021DistTar!$F$85:$F$93,F$39) -> 13900.484 | G261: =INDEX(Prop2021DistTar!$F$85:$F$93,G$39) -> 29449.126 | H261: =INDEX(Prop2021DistTar!$F$85:$F$93,H$39) -> 4607.379 | I261: =INDEX(Prop2021DistTar!$F$85:$F$93,I$39) -> 3420.018 | J261: =INDEX(Prop2021DistTar!$F$85:$F$93,J$39) -> 20040.642 | K261: =INDEX(Prop2021DistTar!$F$85:$F$93,K$39) -> 30968.371
B263: Distribution revenue | C263: Fixed | D263: PkBlk1 | E263: PkBlk2 | F263: PkBlk3 | G263: PkBlk4 | H263: PkBlk5 | I263: Shd1Blk1 | J263: Shd1Blk2 | K263: Shd1Blk3
B265: =B259 -> Existing : Tariff V - Adjoining West - Non Residential | C265: =INDEX(Prop2021DistTar!$H$85:$H$93,C$40) -> 37673.65504 | D265: =INDEX(Prop2021DistTar!$H$85:$H$93,D$40) -> 15585.57763 | E265: =INDEX(Prop2021DistTar!$H$85:$H$93,E$40) -> 12016.83316 | F265: =INDEX(Prop2021DistTar!$H$85:$H$93,F$40) -> 60600.55005 | G265: =INDEX(Prop2021DistTar!$H$85:$H$93,G$40) -> 109536.0242 | H265: =INDEX(Prop2021DistTar!$H$85:$H$93,H$40) -> 19619.602 | I265: =INDEX(Prop2021DistTar!$H$85:$H$93,I$40) -> 13869.541 | J265: =INDEX(Prop2021DistTar!$H$85:$H$93,J$40) -> 70506.98668 | K265: =INDEX(Prop2021DistTar!$H$85:$H$93,K$40) -> 102573.4384
B267: =B261 -> Proposed : Tariff V - Adjoining West - Non Residential | C267: =INDEX(Prop2021DistTar!$G$85:$G$93,C$39) -> 40683.50737 | D267: =INDEX(Prop2021DistTar!$G$85:$G$93,D$39) -> 13897.32317 | E267: =INDEX(Prop2021DistTar!$G$85:$G$93,E$39) -> 10715.26823 | F267: =INDEX(Prop2021DistTar!$G$85:$G$93,F$39) -> 54036.7415 | G267: =INDEX(Prop2021DistTar!$G$85:$G$93,G$39) -> 97670.97129 | H267: =INDEX(Prop2021DistTar!$G$85:$G$93,H$39) -> 17494.6788 | I267: =INDEX(Prop2021DistTar!$G$85:$G$93,I$39) -> 12367.12709 | J267: =INDEX(Prop2021DistTar!$G$85:$G$93,J$39) -> 62869.49802 | K267: =INDEX(Prop2021DistTar!$G$85:$G$93,K$39) -> 91461.98691
B269: Revenue | C269: Total
B270: =B265 -> Existing : Tariff V - Adjoining West - Non Residential | C270: =SUM(C265:K265) -> 441982.2081
B271: =B267 -> Proposed : Tariff V - Adjoining West - Non Residential | C271: =SUM(C267:K267) -> 401197.1024
B273: Average price movement | C273: =IF(C271=0,"",C271/C270) -> 0.9077222906
B275: =IF(C273="","",IF(C273<=$C$13,"REBALANCING CONTROL COMPLIANT","REBALANCING CONTROL BREACHED")) -> REBALANCING CONTROL COMPLIANT
B279: =Prop2021DistTar!B95 -> Tariff M - SP AusNet Central
C280: 1 | D280: 2 | E280: 3
B281: Distribution tariff | C281: DemBlk1 | D281: DemBlk2 | E281: DemBlk2
B282: ="Existing: "&Prop2021DistTar!C95 -> Existing: Tariff M - SP AusNet Central | C282: =INDEX(Prop2021DistTar!$E$96:$E$98,C280) -> 693.9843 | D282: =INDEX(Prop2021DistTar!$E$96:$E$98,D280) -> 660.9622 | E282: =INDEX(Prop2021DistTar!$E$96:$E$98,E280) -> 138.0103
B283: ="Proposed: "&B279 -> Proposed: Tariff M - SP AusNet Central | C283: =INDEX(Prop2021DistTar!$D$96:$D$98,C280) -> 680.0702 | D283: =INDEX(Prop2021DistTar!$D$96:$D$98,D280) -> 647.7102 | E283: =INDEX(Prop2021DistTar!$D$96:$D$98,E280) -> 135.2432
B285: Distribution volumes (actual) | C285: DemBlk1 | D285: DemBlk2 | E285: DemBlk2
B286: =B282 -> Existing: Tariff M - SP AusNet Central | C286: =INDEX(Prop2021DistTar!$F$96:$F$98,C$280) -> 161.62 | D286: =INDEX(Prop2021DistTar!$F$96:$F$98,D$280) -> 52.8 | E286: =INDEX(Prop2021DistTar!$F$96:$F$98,E$280) -> 0
B287: =B283 -> Proposed: Tariff M - SP AusNet Central | C287: =INDEX(Prop2021DistTar!$F$96:$F$98,C$280) -> 161.62 | D287: =INDEX(Prop2021DistTar!$F$96:$F$98,D$280) -> 52.8 | E287: =INDEX(Prop2021DistTar!$F$96:$F$98,E$280) -> 0
B289: Distribution revenue | C289: DemBlk1 | D289: DemBlk2 | E289: DemBlk2
B290: =B286 -> Existing: Tariff M - SP AusNet Central | C290: =INDEX(Prop2021DistTar!$H$96:$H$98,C280) -> 112161.7426 | D290: =INDEX(Prop2021DistTar!$H$96:$H$98,D280) -> 34898.80416 | E290: =INDEX(Prop2021DistTar!$H$96:$H$98,E280) -> 0
B291: =B287 -> Proposed: Tariff M - SP AusNet Central | C291: =INDEX(Prop2021DistTar!$G$96:$G$98,C280) -> 109912.9457 | D291: =INDEX(Prop2021DistTar!$G$96:$G$98,D280) -> 34199.09856 | E291: =INDEX(Prop2021DistTar!$G$96:$G$98,E280) -> 0
B293: Revenue | C293: Total
B294: =B290 -> Existing: Tariff M - SP AusNet Central | C294: =SUM(C290:E290) -> 147060.5467
B295: =B291 -> Proposed: Tariff M - SP AusNet Central | C295: =SUM(C291:E291) -> 144112.0443
B297: Average price movement | C297: =IF(C295=0,"",C295/C294) -> 0.9799504183
B299: =IF(C297="","",IF(C297<=$C$13,"REBALANCING CONTROL COMPLIANT","REBALANCING CONTROL BREACHED")) -> REBALANCING CONTROL COMPLIANT
B303: =Prop2021DistTar!B100 -> Tariff M - SP AusNet West
C304: 1 | D304: 2 | E304: 3
B305: Distribution tariff | C305: DemBlk1 | D305: DemBlk2 | E305: DemBlk2
B306: ="Existing: "&Prop2021DistTar!C100 -> Existing: Tariff M - SP AusNet West | C306: =INDEX(Prop2021DistTar!$E$101:$E$103,C304) -> 693.9843 | D306: =INDEX(Prop2021DistTar!$E$101:$E$103,D304) -> 660.9622 | E306: =INDEX(Prop2021DistTar!$E$101:$E$103,E304) -> 138.0103
B307: ="Proposed: "&B303 -> Proposed: Tariff M - SP AusNet West | C307: =INDEX(Prop2021DistTar!$D$101:$D$103,C304) -> 680.0702 | D307: =INDEX(Prop2021DistTar!$D$101:$D$103,D304) -> 647.7102 | E307: =INDEX(Prop2021DistTar!$D$101:$D$103,E304) -> 135.2432
B309: Distribution volumes (actual) | C309: DemBlk1 | D309: DemBlk2 | E309: DemBlk2
B310: =B306 -> Existing: Tariff M - SP AusNet West | C310: =INDEX(Prop2021DistTar!$F$101:$F$103,C$280) -> 28.7 | D310: =INDEX(Prop2021DistTar!$F$101:$F$103,D$280) -> 24.56 | E310: =INDEX(Prop2021DistTar!$F$101:$F$103,E$280) -> 0
B311: =B307 -> Proposed: Tariff M - SP AusNet West | C311: =INDEX(Prop2021DistTar!$F$101:$F$103,C$280) -> 28.7 | D311: =INDEX(Prop2021DistTar!$F$101:$F$103,D$280) -> 24.56 | E311: =INDEX(Prop2021DistTar!$F$101:$F$103,E$280) -> 0
B313: Distribution revenue | C313: DemBlk1 | D313: DemBlk2 | E313: DemBlk2
B314: =B310 -> Existing: Tariff M - SP AusNet West | C314: =INDEX(Prop2021DistTar!$H$101:$H$103,C304) -> 19917.34941 | D314: =INDEX(Prop2021DistTar!$H$101:$H$103,D304) -> 16233.23163 | E314: =INDEX(Prop2021DistTar!$H$101:$H$103,E304) -> 0
B315: =B311 -> Proposed: Tariff M - SP AusNet West | C315: =INDEX(Prop2021DistTar!$G$101:$G$103,C304) -> 19518.01474 | D315: =INDEX(Prop2021DistTar!$G$101:$G$103,D304) -> 15907.76251 | E315: =INDEX(Prop2021DistTar!$G$101:$G$103,E304) -> 0
B317: Revenue | C317: Total
B318: =B314 -> Existing: Tariff M - SP AusNet West | C318: =SUM(C314:E314) -> 36150.58104
B319: =B315 -> Proposed: Tariff M - SP AusNet West | C319: =SUM(C315:E315) -> 35425.77725
B321: Average price movement | C321: =IF(C319=0,"",C319/C318) -> 0.9799504249
B323: =IF(C321="","",IF(C321<=$C$13,"REBALANCING CONTROL COMPLIANT","REBALANCING CONTROL BREACHED")) -> REBALANCING CONTROL COMPLIANT
B327: =Prop2021DistTar!B105 -> Tariff M - Adjoining Central
C328: 1 | D328: 2 | E328: 3
B329: Distribution tariff | C329: DemBlk1 | D329: DemBlk2 | E329: DemBlk2
B330: ="Existing: "&Prop2021DistTar!C105 -> Existing: Tariff M - Adjoining Central | C330: =INDEX(Prop2021DistTar!$E$106:$E$108,C328) -> 693.9843 | D330: =INDEX(Prop2021DistTar!$E$106:$E$108,D328) -> 660.9622 | E330: =INDEX(Prop2021DistTar!$E$106:$E$108,E328) -> 138.0103
B331: ="Proposed: "&B327 -> Proposed: Tariff M - Adjoining Central | C331: =INDEX(Prop2021DistTar!$D$106:$D$108,C328) -> 680.0702 | D331: =INDEX(Prop2021DistTar!$D$106:$D$108,D328) -> 647.7102 | E331: =INDEX(Prop2021DistTar!$D$106:$D$108,E328) -> 135.2432
B333: Distribution volumes (actual) | C333: DemBlk1 | D333: DemBlk2 | E333: DemBlk2
B334: =B330 -> Existing: Tariff M - Adjoining Central | C334: =INDEX(Prop2021DistTar!$F$106:$F$108,C$280) -> 0 | D334: =INDEX(Prop2021DistTar!$F$106:$F$108,D$280) -> 0 | E334: =INDEX(Prop2021DistTar!$F$106:$F$108,E$280) -> 0
B335: =B331 -> Proposed: Tariff M - Adjoining Central | C335: =INDEX(Prop2021DistTar!$F$106:$F$108,C$280) -> 0 | D335: =INDEX(Prop2021DistTar!$F$106:$F$108,D$280) -> 0 | E335: =INDEX(Prop2021DistTar!$F$106:$F$108,E$280) -> 0
B337: Distribution revenue | C337: DemBlk1 | D337: DemBlk2 | E337: DemBlk2
B338: =B334 -> Existing: Tariff M - Adjoining Central | C338: =INDEX(Prop2021DistTar!$H$106:$H$108,C328) -> 0 | D338: =INDEX(Prop2021DistTar!$H$106:$H$108,D328) -> 0 | E338: =INDEX(Prop2021DistTar!$H$106:$H$108,E328) -> 0
B339: =B335 -> Proposed: Tariff M - Adjoining Central | C339: =INDEX(Prop2021DistTar!$G$106:$G$108,C328) -> 0 | D339: =INDEX(Prop2021DistTar!$G$106:$G$108,D328) -> 0 | E339: =INDEX(Prop2021DistTar!$G$106:$G$108,E328) -> 0
B341: Revenue | C341: Total
B342: =B338 -> Existing: Tariff M - Adjoining Central | C342: =SUM(C338:E338) -> 0
... 83 more rows

Sheet ARS
A1: ="Tariff Approval - "&'Model update'!B3 -> Tariff Approval - AusNet Services
A3: Ancillary Reference Services (Exc GST)
B5: ='Model update'!$B$8 -> 2020 | C5: ='Model update'!$B$5 -> 2021
A6: Disconnection | B6: 60.57 | C6: =ROUND(B6*(1+'Model update'!$B$30),2) -> 60.36
A7: Reconnection of Meter | B7: 60.57 | C7: =ROUND(B7*(1+'Model update'!$B$30),2) -> 60.36
A8: Special Meter Reads | B8: 9.39 | C8: =ROUND(B8*(1+'Model update'!$B$30),2) -> 9.36
A9: Meter and gas installation test | B9: 181.72 | C9: =ROUND(B9*(1+'Model update'!$B$30),2) -> 181.09
A11: Note: Formula is as per AA2018-22, Part B, section 2, p9 : ART = ARTt-1 * (1+CPIt)
